{"text_format":"3","workbook":"xlsx","n_sheets":1,"sheets":["Wesgro Excel Tender BOQ"],"not_rendered":{"defined_names":2},"read":"whole","date_system":"1900"}

{"sheet":"Wesgro Excel Tender BOQ","index":0,"n_rows":1281,"n_cols":9,"rows_kept":1281}
["ITEM NO",null,"BOQ - WESGRO OFFICE FIT OUT 7TH & 8TH FLOORS MEDIA24",null,null,"QUANTITY","RATE","AMOUNT","BILL TOTALS"]
[]
[null,null,"BILL NO. 1 PRELIMINARIES"]
[]
[null,null,"BUILDING AGREEMENT AND PRELIMINARIES"]
[]
[null,null,"Where there is conflict between the JBCC Contract and the Wesgro General Conditions of Contract, the JBCC Contract will take preference."]
[]
[null,null,"The JBCC Principal Building Agreement (Edition 6.2 - May 2018) prepared by the Joint Building Contracts Committee shall be the applicable building agreement, amended as hereinafter described"]
[]
[null,null,"The JBCC Principal Building Agreement contract data form an integral part of this agreement"]
[]
[null,null,"The JBCC General Preliminaries (May 2018) published by the Joint Building Contracts Committee for use with the JBCC Principal Building Agreement (Edition 6.2 - May 2018) shall be deemed to be incorporated in these bills of quantities, amended as hereinafter described"]
[]
[null,null,"The contractor is deemed to have referred to the above mentioned documents for the full intent and meaning of each clause"]
[]
[null,null,"The clauses in the above mentioned documents are hereinafter referred to by clause number and heading only"]
[]
[null,null,"PREAMBLES FOR TRADES"]
[]
[null,null,"The General Preambles for Trades 2017 published by the Association of South African Quantity Surveyors shall be deemed to be incorporated in these bills of quantities and no claims arising from brevity of description of items fully described in the said General Preambles will be entertained"]
[]
[null,null,"Supplementary preambles and/or specifications are incorporated in these bills of quantities to satisfy the requirements of this project. Such supplementary preambles and/or specifications shall take precedence over the provisions of the General Preambles"]
[]
[null,null,"The contractor's prices for all items throughout these bills of quantities shall take account of and include where applicable for all of the obligations, requirements and specifications given in the General Preambles and in any supplementary preambles and/or specifications"]
[]
[null,null,"SPECIFIC REQUIREMENTS"]
[]
[{"v":1,"d":"1 "},null,"The standard clauses of the agreement have not been listed in the Preliminaries Bill and only those clauses which have been expanded on have been listed. The contractor is to provide a lump sum amount for the Preliminaries against the final item of this bill."]
[]
[null,null,"PRICING OF PRELIMINARIES"]
[]
[null,null,"Should the contractor select Option A in the contract data for the adjustment of preliminaries, the amounts entered against the relevant items in these preliminaries are to be divided into one or more of the three categories provided namely fixed (F), value related (V) and time related (T)"]
[]
[null,null,"SECTION A: PRINCIPAL BUILDING AGREEMENT"]
[]
[{"v":2,"d":"2 "},null,"Clause 2.0 - Law, regulations and notices"]
[]
[null,null,"Statutory and other notices"]
[]
[null,null,"The contractor shall submit and/or comply with all statutory and other notices that may be required by any local or other authority in order not to cause any delay to the commencement of the works by the contractor. The contractor shall pay all deposits or fees in this regard"]
[]
[null,null,"It is, however, specifically recorded that the employer shall be responsible for the timeous approval of building plans by any local or other authorities and the payment of any fees or charges related thereto"]
[]
[null,null,"Health and safety"]
[]
[{"v":3,"d":"3 "},null,"Without limiting the generality of the provisions of clause 2.0, the contractor's attention is drawn to the provisions of Construction Regulations 2014 (as amended June 2017) issued in terms of the Occupational Health and Safety Act, 1993. It is specifically stated that the employer shall prepare a documented health and safety specification for the works and that the employer shall ensure that the contractor has made provision for the cost of health and safety measures during the execution of the works. The  contractor shall price opposite this item for compliance with the act and the regulations and the reasonable provisions of the aforementioned health and safety specification [2.1]"]
[]
[{"v":4,"d":"4 "},null,"Clause 11.0 - Securities"]
[]
[{"v":5,"d":"5 "},null,"Clause 11.2.1 A variable or fixed guarantee is not required by the employer A payment reduction shall apply as per Clause 11.4.1 in lieu of a fixed or variable guarantee"]
[]
[null,null,"Execution (A12 - A17)"]
[]
[{"v":6,"d":"6 "},null,"Clause 12.0 - Obligations of the parties"]
[]
[{"v":7,"d":"7 "},null,"12.2.6 Programme  The tenderer is to submit a detailed construction programme with the tender as requested in the Wesgro Request for Proposal"]
[]
[{"v":8,"d":"8 "},null,"12.2.13 Designate a competent person  Details of the contracts manager and foreman are to be submitted with the tender as requested in the Wesgro Request for Proposal. If for any reason the contracts manager or foreman are not available at site hand over the contractor must submit the CV of the alternative contract staff for approval by the Principal Agent"]
[]
[null,null,"Completion (A18 - A24)"]
[]
[{"v":9,"d":"9 "},null,"Clause 19.0 - Practical completion On the morning of the date of Practical Completion, the building will be handed over to the Principal Agent ready for use by the Employer. The Works shall look at first glance entirely complete and there shall be no work being undertaken at the time, The Works shall be clean and tidy with all services operational. The Principal Agent will inspect the Works for Practical Completion and will issue a Final Completion List that shall not comprise more than 50 items."]
[]
[{"v":10,"d":"10 "},null,"Clause 23.0 - Revision of the date for practical completion  Substitution of materials and goods  The removal or substitution of any materials and goods which do not conform to the specification or the contract drawings shall not constitute grounds for the extension of the construction period nor for the adjustment of the contract value [17.1.8; 23.1 & 2]"]
[]
[{"v":11,"d":"11 "},null,"Clause 25.0 - Payment"]
[]
[null,null,"Prices submitted  Where prices are submitted by the contractor or subcontractor during the progress of the works in respect of contract instructions or in regard to a claim under the terms of this agreement and notwithstanding the fact that such prices may be used in an interim payment certificate, there is to be no presumption of acceptance. Should the principal agent wish to accept any such prices prior to the issue of the certificate of final completion, it shall be in writing"]
[]
[{"v":12,"d":"12 "},null,"Clause 26.0 - Adjustment of the contract value and final account"]
[]
[null,null,"Fluctuations in costs  All fluctuations in costs, with the exception of fluctuations in the rate of Value Added Tax, shall be for the account of the contractor [26.9.5]"]
[]
[null,null,"Cost of claims  All costs incurred by the contractor in the preparation of claims shall be borne by the contractor. This provision shall not preclude an adjudicator or an arbitrator appointed in terms of this agreement [30.6 & 7] from making a determination on costs"]
[]
[null,null,"Claims from subcontractors The contractor shall review, assess and adjudicate any claims received by him from any subcontractor and thereafter submit same to the principal agent with a recommendation in order to assist the principal agent in adjudicating the claim [26.6]"]
[]
[null,null,"SECTION B:  GENERAL PRELIMINARIES"]
[]
[null,null,"Attendance on subcontractors (B10)"]
[]
[{"v":13,"d":"13 "},null,"Clause 10.1 - General attendance  General attendance is defined as being the duties of the contractor in terms of clause 12.2 of the JBCC n/s subcontract agreement"]
[]
[null,null,"SECTION  C: SPECIFIC PRELIMINARIES"]
[]
[{"v":14,"d":"14 "},null,"Warranties for materials and workmanship  Where warranties for materials and/or workmanship are called for, the contractor shall obtain a written warranty, addressed to the employer, from the entity supplying the materials and/or executing the work and shall deliver same to the principal agent on final completion of the contract  The warranty shall state that workmanship, materials and installation are warranted for a specific period from the date of practical completion and that any defects that may arise during the specified period shall be made good at the expense of the entity supplying the materials and/or doing the work, upon written notice to do so  The warranty will not be enforced if the work is damaged by defects in the execution of the works, in which case the responsibility for replacement shall rest entirely with the contractor"]
[]
[{"v":15,"d":"15 "},null,"Overtime  Should overtime be required to be worked for any reason whatsoever, the cost of such overtime is to be borne by the contractor unless the principal agent has specifically authorised, prior to execution thereof, that costs for such overtime are to be borne by the employer"]
[]
[{"v":16,"d":"16 "},null,"Cooperation of the contractor for cost management  It is specifically agreed that the contractor accepts the obligation of assisting the principal agent in implementing proper cost management. The contractor will be advised by the principal agent of all cost management procedures which will be implemented to ensure that the contract value does not exceed the budget"]
[]
[{"v":17,"d":"17 "},null,"Overloading  The contractor shall take all necessary steps to ensure that no damage occurs due to overloading of any portion of the works or temporary works eg scaffolding, etc. The contractor shall submit details of his proposed loading, storage, plant erection, etc to the principal agent for approval prior to proceeding with such loading, storing or erecting and shall comply with and pay for the principal agent's requirements in connection with the provision of temporary support work, etc. Any damage caused to the works by overloading shall be made good by the contractor at his sole expense"]
[]
[{"v":18,"d":"18 "},null,"Confidentiality  The contractor undertakes to maintain in confidence any and all information regarding this project and shall obtain appropriate similar undertakings from all subcontractors and suppliers. Such information shall not be used in any way except in connection with the execution of the works  No information regarding this project shall be published or disclosed without the prior written consent of the employer"]
[]
[null,null,"SUMMARY OF CATEGORIES"]
[]
[{"v":19,"d":"19 "},null,"Category  Fixed  :  R........................................                                                                        ",null,"Item",{"v":1,"d":"1 "},null,{"$f":"ROUND(F99*G99,2)","v":{"v":0,"d":"0.00"}}]
[]
[null,null," Category  Value  :  R........................................                                             "]
[]
[null,null,"Category  Time  :   R........................................"]
[]
[null,null,"Total for Preliminaries carried to Summary",{"$nulls":5},{"$f":"SUM(H6:H99)","v":{"v":0,"d":"0.00"}}]
[]
[null,null,"CONTRACT DATA"]
[]
[null,null,"A PROJECT INFORMATION"]
[]
[null,null,"A 1.0 Works (1.1)"]
[]
[null,null,"Project Name: Fit out of two floors in Media24 Building for WesgroWorks "]
[null,null,"Description: The renovation of the 7th and 8th floors in the Media24 Building for office accommodation and the renovation of two bathrooms"]
[]
[null,null,"A 2.0 Site (1.1)"]
[]
[null,null,"Erf Number: 244 Cape Town  "]
[null,null,"Site Address: Media24 Building, 40 Heerengracht, Cape Town 8001 "]
[null,null,"Local Authority: City of Cape Town "]
[]
[null,null,"A 3.0 Employer (1.1)"]
[]
[null,null,"WESGRO  Tel:  Krishen George 071 898 1418  E-mail: scm@wesgro.co.za"]
[]
[null,null,"A 4.0 Principal Agent (1.1)"]
[]
[null,null,"COLLABORATION Agents Service: Interior Designer Darren Shellar 021 448 8686      E-mail: darren@collaboration.co.za"]
[]
[null,null,"Agent (1.1;6.2)  ANN ROESE QUANTITY SURVEYORS  Agents service: Quantity Surveyor  Tel: Ann Roese 083 402 3007  E-mail \tann@arqs.co.za"]
[]
[null,null,"Agent (1.1;6.2)  SUTHERLAND ENGINEERS  Agents service: Fire Engineers  Selwyn Breytenbach  Email: Selwyn@sutherlandengineers.com \t\t"]
[]
[null,null,"Agent (1.1;6.2)  EKCON CONSULTING ENGINEERS  Agents service: Mechanical Engineers  Name Alex Meyer  Email: alex@ekcon.co.za \t\t"]
[]
[null,null,"Agent (1.1;6.2)  Agents service: Health and Safety Consultants  TBA"]
[]
[null,null,"Agent (1.1;6.2)GALETTI Agents service: Media24 Architect - watching brief  Elena Zwick-Sedick  \tE-mail: elena.zwick@galetti.co.za"]
[]
[null,null,"Media24 Building Manager  John Visser  E mail jvisser@media24.com"]
[]
[null,null,"B CONTRACT INFORMATION"]
[]
[null,null,"B 1.0 Definitions (1.1)"]
[]
[null,null,"Bills of quantities system of measurement:Standard System of Measuring Building Work 7th Edition 2017"]
[]
[null,null,"B 2.0 Law, regulations and notices (2.0)"]
[]
[null,null,"Law applicable to the works: Republic of South Africa"]
[]
[null,null,"B 3.0 Offer and acceptance (3.0)"]
[]
[null,null,"Currency applicable to this agreement (3.2)  ZAR"]
[]
[null,null,"B 4.0 Documents (5.0)"]
[]
[null,null,"The priced bills of quantities and the project programme are to be submitted with the tender. \t The bills of quantities in excel are issued with the    tender document - the tenderer is only required to enter the rates as all formulas are in place. The priced Excel bills of quantities on a flash drive must be submitted with the tender. Hand written rates and extensions will result in the invalidation of the tender.  \t\t\t\t\t"]
[]
[null,null,"The original signed agreement is to be held by the Employer (5.2)"]
[]
[null,null,"Number of construction document copies to be supplied to the contractor at no cost (5.6): Three copies"]
[]
[null,null,"Documents comprising the agreement                                                                         "]
[null,null,"The JBCC PBA Edition 6,2 May 2018 page 1 - 30 The JBCC PBA  - Contract Data, Edition 6,2 May 2018 page 1 - 14 "]
[null,null," Provisional bills of quantities  page 1 - 67 "]
[null,null," Annexure A - Media24 contractors house rules "]
[null,null," Annexure B - Interior designers drawings"]
[]
[null,null,"Architects Drawings and Specifications"]
[]
[null,null,"General Arrangement 7th Floor\t 1982/07/GA/20 Rev 1                                     General Arrangement 8th Floor \t1982/08/GA/20 Rev 1                                      General Arrangement Partitions 1982/0A/GA/21\t  Rev A "]
[null,null,"Reflected Ceiling 7th Floor  P/1982/07/RC/50 Rev A                                        Reflected Ceiling 8th Floor P/1982/08/RC/50 Rev A\t"]
[null,null,"Floor Finish 7th Floor P/1982/07/FF/45 Rev B                                                           Floor Finish 8th Floor P/1982/08/FF/45 Rev C  "]
[null,null,"Electrical Layout 7th Floor  P/1982/07/RF/40 Rev 0                                                            Electrical Layout 8th Floor  P/1982/08/RF/40 Rev 0  "]
[null,null,"Female Bathroom 7th Floor P/1982/07/ELE/101 R 0                                               Male Bathroom 8th Floor P/1982/08/ELE/101 R 0"]
[]
[null,null,"B 5.0 Employers agents (6.0)"]
[]
[null,null,"Authority is delegated to the following agents to issue contract instructions and perform duties for specific aspects of the works (6.2) Architect, Mechanical Engineer, Fire Engineer, Quantity Surveyor & Health and Safety Consultant"]
[]
[null,null,"Principal agent's and agents' interest or involvement in the works other than a professional interest (6.3) No interest"]
[]
[null,null,"B 6.0 Insurances (10.0)"]
[]
[null,null,"Insurances by contractor"]
[]
[null,null,"New works (10.1.1) Contract Sum  25% (including VAT)  ."]
[]
[null,null,"Supplementary insurance (10.1.2) Contract Sum  25% (including VAT)  ."]
[]
[null,null,"Public liability insurance (10.1.3) R10,000,000 including VAT"]
[]
[null,null,"B 7.0 Obligations of the employer (12.1)"]
[]
[null,null,"Existing premises will be occupied  (12.1.2) \t\t\t\t\t\tYes \t Refer to Annexure A - Media24 Contractors Rules"]
[]
[null,null,"Restriction of working hours (12.1.2) The contractor will be provided with a separate access route onto the site and may work regular business hours. Any overtime will have to be arranged and approved by the Building Manager"]
[]
[null,null,"All known services are to be preserved by the contractor (12.1.3) It is the intention to incorporate where possible the existing mechanical, electrical and fire detection services and care must be taken not to damage the infrastructure"]
[]
[null,null,"Restrictions to the site or areas that the contractor may not occupy (12.1.4) Material deliveries must only be transported in the goods lift  The contractor and material deliveries must use the delivery entrance at the back of the building"]
[]
[null,null,"B 9.0 Direct contractors (16.0)"]
[]
[null,null,"Wesgro will appoint their own data contractor whose work will have to be included in the project programme"]
[]
[null,null,"B11.0 Possession of site (12.1.5), practical completion (19.0;20.0) and penalties (24.0)"]
[]
[null,null,"Intended date of possession of the site (12.1.5) \t\t\t\t23 February 2024"]
[]
[null,null,"Period for the commencement of the works after contractor takes possession of the site \t\t\tZero (0) working days"]
[]
[null,null,"Date for practical completion (12.2.7;24.1)  The Employer  intends moving into the premises on 28 June 2024"]
[]
[null,null,"Penalty (24.1) \tR8,650 excluding VAT per calendar day"]
[]
[null,null,"B 12.0 Payment (25.0)"]
[]
[null,null,"Date of the month for regular payment certificates (25.2) 20th"]
[]
[null,null,"Cost fluctuations (25.3.4; 26.9.5) The contractor is to fix the tender rates from the date of the tender and no escalation shall apply"]
[]
[null,null,"B 13.0 Dispute resolution (30.0)"]
[]
[null,null,"The method of dispute resolution shall be agreed between the employer and contractor on signing of the contract"]
[]
[null,null,"B14.0 JBCC General Preliminaries - selections"]
[]
[null,null,"Provisional bills of quantities (P2.2)\t\tyes"]
[]
[null,null,"Availability of construction information (P2.3)\tyes"]
[]
[null,null,"Inspection of adjoining properties (P3.3) Before commencing with the works a photographic record must be made of any damage to the existing structure"]
[]
[null,null,"Known services (P4.6)"]
[]
[null,null,"Water (P8.1)Option A (by contractor)                              noOption B (by employer - free of charge)       no Option C (by employer - metered)                yes"]
[]
[null,null,"Electricity (P8.2)  Option A (by contractor)                               no Option B (by employer - free of charge)        no Option C (by employer - metered)                yes"]
[]
[null,null,"Ablution facilities (P8.3)  Option A (by contractor)                             yes Option B (by employer)                                no"]
[]
[null,null,"Communication facilities (P8.4)  Telephone \t\t\t\t      yes E-mail\t\t\t                             yes"]
[]
[null,null,"B 15.0 Changes made to the JBCC documents"]
[]
[null,null,"PAYMENT REDUCTIONA Payment reduction shall apply as per Clause 11.4.1 in lieu of a fixed or variable guaranteeClause 11.4.1Hand over the site to the contractor and withhold an amount of 10% on each interim payment certificate to the contractor until the total amount withheld is equal to ten per cent (10%) of the contract sum. The amount withheld shall be reduced at practical completion to two and half per cent (2,5%) of the contract sum and to zero per cent (0%) in the final payment certificateInterest shall not apply to the 10% payment reduction"]
[]
[null,null,"PAYMENT Clause 25.10 The employer shall pay the contractor the amount certified in an issued payment certificate within 30 calendar days of the date of issue of the payment certificate including default interest and compensatory interest"]
[]
[null,null,"BILL NO 2"]
[]
[null,null,"CEILINGS"]
[]
[null,null,"PREAMBLES"]
[]
[null,null,"For preambles see \"Model Preambles for Trades\""]
[]
[null,null,"SUPPLEMENTARY PREAMBLES"]
[]
[null,null,"Fixing"]
[]
[null,null,"Items described as \"plugged\" shall be deemed to include screwing to fibre, plastic or metal plugs at not exceeding 500mm centres, and where described as \"bolted\", the bolts have been given elsewhere"]
[]
[null,null,"Items described as \"nailed\" shall be deemed to be fixed with hardened steel nails or pins, or to be shot-pinned, to brickwork or concrete"]
[]
[null,null,"Steel components"]
[]
[null,null,"All steel components for ceilings, partitions, etc are to be galvanised in accordance with SANS 121"]
[]
[null,null,"Proprietary suspended ceilings"]
[]
[null,null,"Hangers, suspension grids, \"lay-in\" panels, etc are to be in accordance with the manufacturers' recommendations"]
[]
[null,null,"REMOVAL OF EXISTING WORK"]
[]
[null,null,"Ceilings"]
[]
[{"v":1,"d":"1 "},null,"Suspended gypsum board and ceiling tiles excluding suspension grid, hangers, cornices etc",null,"m²",{"v":2112,"d":"2,112 "},null,{"$f":"ROUND(F280*G280,2)","v":{"v":0,"d":"0.00"}}]
[]
[{"v":2,"d":"2 "},null,"Budgetary allowance for alterations to existing ceiling grid to accommodate new ceilings",null,"Item",{"v":1,"d":"1 "},null,{"$f":"ROUND(F282*G282,2)","v":{"v":0,"d":"0.00"}}]
[]
[null,null,"SUSPENDED CEILINGS"]
[]
[null,null,"Supply and install Owacoustic Constellation 600 x 600 x 15mm mineral fibre ceiling tiles with square edges on existing tee suspension system including all necessary hangers, sub grid and fixings."]
[]
[{"v":3,"d":"3 "},null,"Horizontal ceilings suspended exceeding 2m and not exceeding 3m below concrete soffit",null,"m²",{"v":1363,"d":"1,363 "},null,{"$f":"ROUND(F288*G288,2)","v":{"v":0,"d":"0.00"}}]
[]
[null,null,"6.4mm \"Rhino\" gypsum plasterboard ceilings fixed to existing tee-suspension system with strips of mesh scrim nailed over joints and the whole surface finished with gypsum skim plaster trowelled to a smooth polished surface"]
[]
[{"v":4,"d":"4 "},null,"Horizontal ceilings suspended not exceeding 1m below concrete soffits",null,"m²",{"v":82,"d":"82 "},null,{"$f":"ROUND(F292*G292,2)","v":{"v":0,"d":"0.00"}}]
[]
[{"v":5,"d":"5 "},null,"Vertical ceilings suspended not exceeding 1m extreme below concrete soffits",null,"m²",{"v":2,"d":"2 "},null,{"$f":"ROUND(F294*G294,2)","v":{"v":0,"d":"0.00"}}]
[]
[null,null,"Flush plastered gypsum plasterboard suspended bulkheads"]
[]
[null,null,"Bulkheads are defined as those portions of ceilings which are stepped down from the general ceiling level in a particular room or area and which generally occur along the perimeter. Their purpose is either to conceal services or to create architectural features"]
[]
[{"v":6,"d":"6 "},null,"Rectangular bulkheads 400mm wide x 100mm high, suspended not exceeding 1m below concrete soffits as per detail 01 (refer to architect's drawing P/1982/08/RC/50)",null,"m",{"v":4,"d":"4 "},null,{"$f":"ROUND(F300*G300,2)","v":{"v":0,"d":"0.00"}}]
[]
[{"v":7,"d":"7 "},null,"Rectangular bulkheads 350mm wide x 100mm high, suspended not exceeding 1m below concrete soffits as per detail 01 (refer to architect's drawing P/1982/08/RC/50)",null,"m",{"v":4,"d":"4 "},null,{"$f":"ROUND(F302*G302,2)","v":{"v":0,"d":"0.00"}}]
[]
[{"v":8,"d":"8 "},null,"Rectangular bulkheads 500mm wide x 100mm high, suspended not exceeding 1m below concrete soffits as per detail 01 (refer to architect's drawing P/1982/08/RC/50)",null,"m",{"v":5,"d":"5 "},null,{"$f":"ROUND(F304*G304,2)","v":{"v":0,"d":"0.00"}}]
[]
[{"v":9,"d":"9 "},null,"Rectangular bulkheads 600mm wide x 100mm high, suspended not exceeding 1m below concrete soffits as per detail 01 (refer to architect's drawing P/1982/08/RC/50)",null,"m",{"v":134,"d":"134 "},null,{"$f":"ROUND(F306*G306,2)","v":{"v":0,"d":"0.00"}}]
[]
[{"v":10,"d":"10 "},null,"Rectangular bulkheads 700mm wide x 100mm high, suspended not exceeding 1m below concrete soffits as per detail 01 (refer to architect's drawing P/1982/08/RC/50)",null,"m",{"v":13,"d":"13 "},null,{"$f":"ROUND(F308*G308,2)","v":{"v":0,"d":"0.00"}}]
[]
[{"v":11,"d":"11 "},null,"Rectangular bulkheads 1000mm wide x 100mm high, suspended not exceeding 1m below concrete soffits as per detail 05 and 06 (refer to architect's drawing P/1982/08/RC/50)",null,"m",{"v":228,"d":"228 "},null,{"$f":"ROUND(F310*G310,2)","v":{"v":0,"d":"0.00"}}]
[]
[{"v":12,"d":"12 "},null,"Rectangular bulkheads 1086mm wide x 100mm high, suspended not exceeding 1m below concrete soffits as per detail 01 (refer to architect's drawing P/1982/08/RC/50)",null,"m",{"v":4,"d":"4 "},null,{"$f":"ROUND(F312*G312,2)","v":{"v":0,"d":"0.00"}}]
[]
[{"v":13,"d":"13 "},null,"Rectangular bulkheads 1210mm wide x 100mm high, suspended not exceeding 1m below concrete soffits as per detail 01 (refer to architect's drawing P/1982/08/RC/50)",null,"m",{"v":9,"d":"9 "},null,{"$f":"ROUND(F314*G314,2)","v":{"v":0,"d":"0.00"}}]
[]
[{"v":14,"d":"14 "},null,"Rectangular bulkheads 1250mm wide x 100mm high with chamfered projecting edge 10mm long, suspended not exceeding 1m below concrete soffits as per detail 03 (refer to architect's drawing P/1982/07/RC/50)",null,"m",{"v":6,"d":"6 "},null,{"$f":"ROUND(F316*G316,2)","v":{"v":0,"d":"0.00"}}]
[]
[{"v":15,"d":"15 "},null,"Rectangular bulkheads 1400mm wide x 100mm high, suspended not exceeding 1m below concrete soffits as per detail 01 (refer to architect's drawing P/1982/08/RC/50)",null,"m",{"v":5,"d":"5 "},null,{"$f":"ROUND(F318*G318,2)","v":{"v":0,"d":"0.00"}}]
[]
[{"v":16,"d":"16 "},null,"Rectangular bulkheads 1500mm wide x 100mm high, suspended not exceeding 1m below concrete soffits as per detail 01 (refer to architect's drawing P/1982/08/RC/50)",null,"m",{"v":4,"d":"4 "},null,{"$f":"ROUND(F320*G320,2)","v":{"v":0,"d":"0.00"}}]
[]
[{"v":17,"d":"17 "},null,"Rectangular bulkheads 1600mm wide x 100mm high, suspended not exceeding 1m below concrete soffits as per detail 01 (refer to architect's drawing P/1982/08/RC/50)",null,"m",{"v":13,"d":"13 "},null,{"$f":"ROUND(F322*G322,2)","v":{"v":0,"d":"0.00"}}]
[]
[{"v":18,"d":"18 "},null,"Rectangular bulkheads 1800mm wide x 100mm high, suspended not exceeding 1m below concrete soffits as per detail 01 (refer to architect's drawing P/1982/08/RC/50)",null,"m",{"v":14,"d":"14 "},null,{"$f":"ROUND(F324*G324,2)","v":{"v":0,"d":"0.00"}}]
[]
[{"v":19,"d":"19 "},null,"Rectangular bulkheads 2375mm wide x 100mm high, suspended not exceeding 1m below concrete soffits as per detail 01 (refer to architect's drawing P/1982/08/RC/50)",null,"m",{"v":9,"d":"9 "},null,{"$f":"ROUND(F326*G326,2)","v":{"v":0,"d":"0.00"}}]
[]
[{"v":20,"d":"20 "},null,"Rectangular bulkheads 2398mm wide x 100mm high, suspended not exceeding 1m below concrete soffits as per detail 01 (refer to architect's drawing P/1982/08/RC/50)",null,"m",{"v":1,"d":"1 "},null,{"$f":"ROUND(F328*G328,2)","v":{"v":0,"d":"0.00"}}]
[]
[{"v":21,"d":"21 "},null,"Rectangular bulkheads 3000mm wide x 100mm high, suspended not exceeding 1m below concrete soffits as per detail 01 (refer to architect's drawing P/1982/08/RC/50)",null,"m",{"v":2,"d":"2 "},null,{"$f":"ROUND(F330*G330,2)","v":{"v":0,"d":"0.00"}}]
[]
[{"v":22,"d":"22 "},null,"Recessed shaped ceilings 8700mm long x 2000mm wide at one end and 3000mm wide at other end x 100mm high, suspended not exceeding 1m below concrete soffits as per detail 06 (refer to architect's drawing P/1982/07/RC/50)",null,"No",{"v":1,"d":"1 "},null,{"$f":"ROUND(F332*G332,2)","v":{"v":0,"d":"0.00"}}]
[]
[{"v":23,"d":"23 "},null,"Extra over ceiling for hinged trapdoor",null,"No",{"v":28,"d":"28 "},null,{"$f":"ROUND(F334*G334,2)","v":{"v":0,"d":"0.00"}}]
[]
[null,null,"\"OWAconstruct\" Shadowline perimeter trims, etc to suspended acoustic ceilings"]
[]
[{"v":24,"d":"24 "},null,"OWAconstruct Shadowline W-trim, plugged and screwed at centres not exceeding 200mm.",null,"m",{"v":837,"d":"837 "},null,{"$f":"ROUND(F338*G338,2)","v":{"v":0,"d":"0.00"}}]
[]
[null,null,"Total for Ceilings carried to Summary",{"$nulls":5},{"$f":"SUM(H280:H338)","v":{"v":0,"d":"0.00"}}]
[]
[null,null,"BILL NO 3"]
[]
[null,null,"PARTITIONS"]
[]
[null,null,"PREAMBLES"]
[]
[null,null,"For preambles see \"Model Preambles for Trades\""]
[]
[null,null,"SUPPLEMENTARY PREAMBLES"]
[]
[null,null,"Fixing"]
[]
[null,null,"Items described as \"plugged\" shall be deemed to include screwing to fibre, plastic or metal plugs at not exceeding 500mm centres, and where described as \"bolted\", the bolts have been given elsewhere"]
[]
[null,null,"Items described as \"nailed\" shall be deemed to be fixed with hardened steel nails or pins, or to be shot-pinned, to brickwork or concrete"]
[]
[null,null,"Steel components"]
[]
[null,null,"All steel components for ceilings, partitions, etc are to be galvanised in accordance with SANS 121"]
[]
[null,null,"Partitions"]
[]
[null,null,"The design of the vertical structural members of the drywallpartition and/or lightweight internal wall shall be in strict accordance with the SABISA Drywall Partition and lightweight Internal Wall Selection Guide. Compliance with this Selection Guide will ensure conformance with appropriate deflection and fire rating requirements."]
[]
[null,null,"For details of partitions refer to Drawings: General arrangement builders work - setting out 7th Floor 1982/07/GA/20 Rev 1 8th Floor 1982/08/GA/20 Rev 1 General arrangement - Partition types - 1982/0A/GA/21 Rev A"]
[]
[null,null,"FIXED PARTITIONS"]
[]
[null,null,"Skirtings are measured separately"]
[]
[null,null,"Paint and varnish finishes are measured separately"]
[]
[null,null,"PARTITION TYPE A"]
[]
[null,null,"Partitions consisting of 102mm \"Gypframe Ultrasteel\" studs inserted at 600mm centres into 102mm \"Gypframe Ultrasteel\" steel track at top and bottom including \"Gypframe Ultrasteel Deep Track\" and clad on both sides as described with all external angles to have \"Gypframe Corner Beads\" attached.  Boards shall be fixed in strict accordance with the manufacturer's instructions and all joints shall be covered with \"Gyproc Rhino Tape\" and finished with one layer of Rhinolite"]
[]
[null,null,"132mm Thick 60 minutes Fire rated acoustic partition with one layer 15mm \"Gyproc Firestop\"on both sides and 102mm \"Isover Cavitybatt/Cavitylite\" insulation inserted into cavity"]
[]
[{"v":1,"d":"1 "},null,"Partitions 3100mm high with bottom tracks nailed to concrete floors and top track fixed to concrete soffits",null,"m",{"v":26,"d":"26 "},null,{"$f":"ROUND(F380*G380,2)","v":{"v":0,"d":"0.00"}}]
[]
[{"v":2,"d":"2 "},null,"Extra over partition 3100mm high for abutment with column as per detail 02 (refer drawing 1982/0A/GA/21 revision A)",null,"No",{"v":4,"d":"4 "},null,{"$f":"ROUND(F382*G382,2)","v":{"v":0,"d":"0.00"}}]
[]
[{"v":3,"d":"3 "},null,"Extra over partition 3100mm high for fair end as per detail 11 (refer drawing 1982/0A/GA/21 revision A)",null,"No",{"v":1,"d":"1 "},null,{"$f":"ROUND(F384*G384,2)","v":{"v":0,"d":"0.00"}}]
[]
[null,null,"PARTITION TYPE B"]
[]
[null,null,"Partitions consisting of 63.5mm \"Gypframe Ultrasteel\" studs inserted at 600mm centres into 63.5mm \"Gypframe Ultrasteel\" steel track at top and bottom and clad on both sides as described with all external angles to have \"Gypframe Corner Beads\" attached. Boards shall be fixed in strict accordance with the manufacturer's instructions and all joints shall be covered with \"Gyproc Rhino Tape\" and finished with one layer of Rhinolite"]
[]
[null,null,"94mm Thick 60min Fire rated acoustic partition with one layer 15mm \"Gyproc Firestop\"on both sides and 63mm \"Isover Cavitybatt/Cavitylite\" insulation inserted into cavity"]
[]
[{"v":4,"d":"4 "},null,"Partitions 3100mm high with bottom tracks nailed to concrete floors and top track fixed to concrete soffits",null,"m",{"v":32,"d":"32 "},null,{"$f":"ROUND(F392*G392,2)","v":{"v":0,"d":"0.00"}}]
[]
[{"v":5,"d":"5 "},null,"Extra over partition 3100mm high for abutment with brickwork as per detail 01 (refer drawing 1982/0A/GA/21 revision A)",null,"No",{"v":10,"d":"10 "},null,{"$f":"ROUND(F394*G394,2)","v":{"v":0,"d":"0.00"}}]
[]
[{"v":6,"d":"6 "},null,"Extra over partition 3100mm high for abutment with column as per detail 02 (refer drawing 1982/0A/GA/21 revision A)",null,"No",{"v":36,"d":"36 "},null,{"$f":"ROUND(F396*G396,2)","v":{"v":0,"d":"0.00"}}]
[]
[{"v":7,"d":"7 "},null,"Extra over partition 3100mm high for corner as per detail 04 (refer drawing 1982/0A/GA/21 revision A)",null,"No",{"v":34,"d":"34 "},null,{"$f":"ROUND(F398*G398,2)","v":{"v":0,"d":"0.00"}}]
[]
[{"v":8,"d":"8 "},null,"Extra over partition 3100mm high for T-intersection as per detail 06 (refer drawing 1982/0A/GA/21 revision A)",null,"No",{"v":24,"d":"24 "},null,{"$f":"ROUND(F400*G400,2)","v":{"v":0,"d":"0.00"}}]
[]
[{"v":9,"d":"9 "},null,"Extra over partition 3100mm high for fair end as per detail 11 (refer drawing 1982/0A/GA/21 revision A)",null,"No",{"v":8,"d":"8 "},null,{"$f":"ROUND(F402*G402,2)","v":{"v":0,"d":"0.00"}}]
[]
[{"v":10,"d":"10 "},null,"Extra over partition 3100mm high for abutment with mullion as per detail 15 (refer drawing 1982/0A/GA/21 revision A)",null,"No",{"v":14,"d":"14 "},null,{"$f":"ROUND(F404*G404,2)","v":{"v":0,"d":"0.00"}}]
[]
[{"v":11,"d":"11 "},null,"Extra over to form opening for door size 853 x 2400mm high as per detail 12 (refer drawing 1982/0A/GA/21)",null,"No",{"v":22,"d":"22 "},null,{"$f":"ROUND(F406*G406,2)","v":{"v":0,"d":"0.00"}}]
[]
[{"v":12,"d":"12 "},null,"Extra over to form opening for door size 1666 x 2400mm high as per detail 12 (refer drawing 1982/0A/GA/21)",null,"No",{"v":6,"d":"6 "},null,{"$f":"ROUND(F408*G408,2)","v":{"v":0,"d":"0.00"}}]
[]
[{"v":13,"d":"13 "},null,"Extra over to form opening for fixed light size 863 x 2400mm high",null,"No",{"v":1,"d":"1 "},null,{"$f":"ROUND(F410*G410,2)","v":{"v":0,"d":"0.00"}}]
[]
[{"v":14,"d":"14 "},null,"Extra over to form opening for fixed light size 990 x 2400mm high",null,"No",{"v":2,"d":"2 "},null,{"$f":"ROUND(F412*G412,2)","v":{"v":0,"d":"0.00"}}]
[]
[{"v":15,"d":"15 "},null,"Extra over to form opening for fixed light size 1000 x 2400mm high",null,"No",{"v":9,"d":"9 "},null,{"$f":"ROUND(F414*G414,2)","v":{"v":0,"d":"0.00"}}]
[]
[{"v":16,"d":"16 "},null,"Extra over to form opening for fixed light size 1493 x 2400mm high",null,"No",{"v":1,"d":"1 "},null,{"$f":"ROUND(F416*G416,2)","v":{"v":0,"d":"0.00"}}]
[]
[{"v":17,"d":"17 "},null,"Extra over to form opening for fixed light size 2500 x 2400mm high",null,"No",{"v":2,"d":"2 "},null,{"$f":"ROUND(F418*G418,2)","v":{"v":0,"d":"0.00"}}]
[]
[null,null,"PARTITION TYPE C"]
[]
[null,null,"\"Gyproc Classic Wall System with one layer 12,5mm \"Gyproc Rhinoboard\"on both sides and 63mm \"Isover Cavitybatt/Cavitylite\" insulation inserted into cavity"]
[]
[{"v":18,"d":"18 "},null,"Partitioning 2 700mm high with bottom track plugged and top track fixed to concrete soffits through ceiling 3,100mm above floor level",null,"m",{"v":345,"d":"345 "},null,{"$f":"ROUND(F424*G424,2)","v":{"v":0,"d":"0.00"}}]
[]
[{"v":19,"d":"19 "},null,"Extra over partition 2700mm high for abutment with brickwork as per detail 01 (refer drawing 1982/0A/GA/21 revision A)",null,"No",{"v":5,"d":"5 "},null,{"$f":"ROUND(F426*G426,2)","v":{"v":0,"d":"0.00"}}]
[]
[{"v":20,"d":"20 "},null,"Extra over partition 2700mm high for abutment with column as per detail 02 (refer drawing 1982/0A/GA/21 revision A)",null,"No",{"v":16,"d":"16 "},null,{"$f":"ROUND(F428*G428,2)","v":{"v":0,"d":"0.00"}}]
[]
[{"v":21,"d":"21 "},null,"Extra over partition 2700mm high for corner as per detail 04 (refer drawing 1982/0A/GA/21 revision A)",null,"No",{"v":14,"d":"14 "},null,{"$f":"ROUND(F430*G430,2)","v":{"v":0,"d":"0.00"}}]
[]
[{"v":22,"d":"22 "},null,"Extra over partition 2700mm high for T-intersection as per detail 06 (refer drawing 1982/0A/GA/21 revision A)",null,"No",{"v":7,"d":"7 "},null,{"$f":"ROUND(F432*G432,2)","v":{"v":0,"d":"0.00"}}]
[]
[{"v":23,"d":"23 "},null,"Extra over partition 2700mm high for fair end as per detail 11 (refer drawing 1982/0A/GA/21 revision A)",null,"No",{"v":12,"d":"12 "},null,{"$f":"ROUND(F434*G434,2)","v":{"v":0,"d":"0.00"}}]
[]
[{"v":24,"d":"24 "},null,"Extra over partition 2700mm high for abutment with mullion as per detail 15 (refer drawing 1982/0A/GA/21 revision A)",null,"No",{"v":2,"d":"2 "},null,{"$f":"ROUND(F436*G436,2)","v":{"v":0,"d":"0.00"}}]
[]
[{"v":25,"d":"25 "},null,"Extra over to form opening for door size 853 x 2400mm high as per detail 12 (refer drawing 1982/0A/GA/21)",null,"No",{"v":2,"d":"2 "},null,{"$f":"ROUND(F438*G438,2)","v":{"v":0,"d":"0.00"}}]
[]
[{"v":26,"d":"26 "},null,"Extra over to form opening for fixed light size 3000 x 2400mm high",null,"No",{"v":2,"d":"2 "},null,{"$f":"ROUND(F440*G440,2)","v":{"v":0,"d":"0.00"}}]
[]
[{"v":27,"d":"27 "},null,"Extra over to form opening for fixed lightt size 3362 x 2400mm high",null,"No",{"v":1,"d":"1 "},null,{"$f":"ROUND(F442*G442,2)","v":{"v":0,"d":"0.00"}}]
[]
[null,null,"\"Gyproc Classic Wall System with one layer 12,5mm \"Gyproc Rhinoboard\"on one side only"]
[]
[{"v":28,"d":"28 "},null,"Partitions 2700mm high with bottom tracks nailed to concrete floors and top track fixed to concrete soffits",null,"m",{"v":45,"d":"45 "},null,{"$f":"ROUND(F446*G446,2)","v":{"v":0,"d":"0.00"}}]
[]
[{"v":29,"d":"29 "},null,"Extra over to form opening for door size 853 x 2100 high",null,"No",{"v":13,"d":"13 "},null,{"$f":"ROUND(F448*G448,2)","v":{"v":0,"d":"0.00"}}]
[]
[null,null,"PARTITION TYPE D - FIRE WALL"]
[]
[null,null,"\"Gyproc Fire Resistant Wall System with one layer 12,5mm and one layer 15mm \"Gyproc Rhinoboard Firestop\"on both sides (2 hour fire rating)"]
[]
[{"v":30,"d":"30 "},null,"Partitions 3100mm high with bottom tracks nailed to concrete floors and top track fixed to concrete soffits",null,"m",{"v":42,"d":"42 "},null,{"$f":"ROUND(F454*G454,2)","v":{"v":0,"d":"0.00"}}]
[]
[{"v":31,"d":"31 "},null,"Extra over partition 3100mm high for abutment with brickwork as per detail 01 (refer drawing 1982/0A/GA/21 revision A)",null,"No",{"v":6,"d":"6 "},null,{"$f":"ROUND(F456*G456,2)","v":{"v":0,"d":"0.00"}}]
[]
[{"v":32,"d":"32 "},null,"Extra over partition 3100mm high for abutment with column as per detail 02 (refer drawing 1982/0A/GA/21 revision A)",null,"No",{"v":10,"d":"10 "},null,{"$f":"ROUND(F458*G458,2)","v":{"v":0,"d":"0.00"}}]
[]
[{"v":33,"d":"33 "},null,"Extra over partition 3100mm high for corner as per detail 04 (refer drawing 1982/0A/GA/21 revision A)",null,"No",{"v":10,"d":"10 "},null,{"$f":"ROUND(F460*G460,2)","v":{"v":0,"d":"0.00"}}]
[]
[{"v":34,"d":"34 "},null,"Extra over partition 3100mm high for T-intersection as per detail 06 (refer drawing 1982/0A/GA/21 revision A)",null,"No",{"v":4,"d":"4 "},null,{"$f":"ROUND(F462*G462,2)","v":{"v":0,"d":"0.00"}}]
[]
[{"v":35,"d":"35 "},null,"Extra over partition 3100mm high for fair end as per detail 11 (refer drawing 1982/0A/GA/21 revision A)",null,"No",{"v":2,"d":"2 "},null,{"$f":"ROUND(F464*G464,2)","v":{"v":0,"d":"0.00"}}]
[]
[{"v":36,"d":"36 "},null,"Extra over partition 3100mm high for abutment with mullion as per detail 15 (refer drawing 1982/0A/GA/21 revision A)",null,"No",{"v":2,"d":"2 "},null,{"$f":"ROUND(F466*G466,2)","v":{"v":0,"d":"0.00"}}]
[]
[{"v":37,"d":"37 "},null,"Extra over to form opening for door size 860 x 2032mm high as per detail 12 (refer drawing 1982/0A/GA/21) - supply and installation of door elsewhere measured",null,"No",{"v":3,"d":"3 "},null,{"$f":"ROUND(F468*G468,2)","v":{"v":0,"d":"0.00"}}]
[]
[{"v":38,"d":"38 "},null,"Extra over to form opening for door size 1666 x 2100mm high as per detail 12 (refer drawing 1982/0A/GA/21) - supply and installation of door elsewhere measured",null,"No",{"v":3,"d":"3 "},null,{"$f":"ROUND(F470*G470,2)","v":{"v":0,"d":"0.00"}}]
[]
[null,null,"TIMBER NOGGINS FOR SUPPORT OF SCREENS, JOINERY ETC"]
[]
[null,null,"18mm thick plywood noggin fixed between Gypframe UltraSTEEL Stud and Gyproc galvanised angle as per architect's detail 07 (refer drawing 1982/0A/GA/21)"]
[]
[{"v":39,"d":"39 "},null,"1400 x 1700mm high noggin",null,"No",{"v":2,"d":"2 "},null,{"$f":"ROUND(F476*G476,2)","v":{"v":0,"d":"0.00"}}]
[]
[{"v":40,"d":"40 "},null,"1500 x 1700mm high noggin",null,"No",{"v":1,"d":"1 "},null,{"$f":"ROUND(F478*G478,2)","v":{"v":0,"d":"0.00"}}]
[]
[{"v":41,"d":"41 "},null,"1800 x 1700mm high noggin",null,"No",{"v":3,"d":"3 "},null,{"$f":"ROUND(F480*G480,2)","v":{"v":0,"d":"0.00"}}]
[]
[{"v":42,"d":"42 "},null,"2000 x 1700mm high noggin",null,"No",{"v":16,"d":"16 "},null,{"$f":"ROUND(F482*G482,2)","v":{"v":0,"d":"0.00"}}]
[]
[{"v":43,"d":"43 "},null,"2250 x 1700mm high noggin",null,"No",{"v":1,"d":"1 "},null,{"$f":"ROUND(F484*G484,2)","v":{"v":0,"d":"0.00"}}]
[]
[{"v":44,"d":"44 "},null," 2261 x 1700mm high noggin",null,"No",{"v":1,"d":"1 "},null,{"$f":"ROUND(F486*G486,2)","v":{"v":0,"d":"0.00"}}]
[]
[{"v":45,"d":"45 "},null,"2360 x 1700mm high noggin",null,"No",{"v":1,"d":"1 "},null,{"$f":"ROUND(F488*G488,2)","v":{"v":0,"d":"0.00"}}]
[]
[{"v":46,"d":"46 "},null,"2364 x 1700mm high noggin",null,"No",{"v":1,"d":"1 "},null,{"$f":"ROUND(F490*G490,2)","v":{"v":0,"d":"0.00"}}]
[]
[{"v":47,"d":"47 "},null,"2848 x 1700mm high noggin",null,"No",{"v":1,"d":"1 "},null,{"$f":"ROUND(F492*G492,2)","v":{"v":0,"d":"0.00"}}]
[]
[{"v":48,"d":"48 "},null,"3500 x 1700mm high noggin",null,"No",{"v":1,"d":"1 "},null,{"$f":"ROUND(F494*G494,2)","v":{"v":0,"d":"0.00"}}]
[]
[{"v":49,"d":"49 "},null,"4022 x 1700mm high noggin",null,"No",{"v":1,"d":"1 "},null,{"$f":"ROUND(F496*G496,2)","v":{"v":0,"d":"0.00"}}]
[]
[{"v":50,"d":"50 "},null,"18mm plywood 100mm high fixed between studs for joinery supportwork as per detail 13 (refer drawing 1982/0A/GA/21)",null,"m",{"v":12,"d":"12 "},null,{"$f":"ROUND(F498*G498,2)","v":{"v":0,"d":"0.00"}}]
[]
[null,null,"ALUMINIUM SKIRTINGS"]
[]
[null,null,"Natural anodised aluminium skirting"]
[]
[{"v":51,"d":"51 "},null,"75mm High flat section skirting",null,"m",{"v":1255,"d":"1,255 "},null,{"$f":"ROUND(F504*G504,2)","v":{"v":0,"d":"0.00"}}]
[]
[null,null,"TIMBER DOORS"]
[]
[null,null,"Extra over partitions for 44mm solid core door hung to and including natural anodised aluminium Clip 44 door frame with 3 hinges to each hanging stile"]
[]
[{"v":52,"d":"52 "},null,"Door and frame to suit opening 853 x 2100",null,"No",{"v":13,"d":"13 "},null,{"$f":"ROUND(F510*G510,2)","v":{"v":0,"d":"0.00"}}]
[]
[{"v":53,"d":"53 "},null,"Door and frame to suit opening size 853 x 2400mm high (Door type 01)",null,"No",{"v":14,"d":"14 "},null,{"$f":"ROUND(F512*G512,2)","v":{"v":0,"d":"0.00"}}]
[]
[null,null,"GLAZED ALUMINIUM FIXED LIGHTS AND DOORS"]
[]
[null,null,"6mm clear toughened glazed sidelights in one fixed pane including Clip 44 natural anodised aluminium frame"]
[]
[{"v":54,"d":"54 "},null,"863mm wide x 2400mm high glazed fixed light",null,"No",{"v":1,"d":"1 "},null,{"$f":"ROUND(F518*G518,2)","v":{"v":0,"d":"0.00"}}]
[]
[{"v":55,"d":"55 "},null,"990mm wide x 2400mm high glazed fixed light",null,"No",{"v":2,"d":"2 "},null,{"$f":"ROUND(F520*G520,2)","v":{"v":0,"d":"0.00"}}]
[]
[{"v":56,"d":"56 "},null,"1000mm wide x 2400mm high glazed fixed light",null,"No",{"v":9,"d":"9 "},null,{"$f":"ROUND(F522*G522,2)","v":{"v":0,"d":"0.00"}}]
[]
[{"v":57,"d":"57 "},null,"1493mm wide x 2400mm high glazed fixed light",null,"No",{"v":1,"d":"1 "},null,{"$f":"ROUND(F524*G524,2)","v":{"v":0,"d":"0.00"}}]
[]
[{"v":58,"d":"58 "},null,"2500mm wide x 2400mm high glazed fixed light",null,"No",{"v":2,"d":"2 "},null,{"$f":"ROUND(F526*G526,2)","v":{"v":0,"d":"0.00"}}]
[]
[{"v":59,"d":"59 "},null,"3000mm wide x 2400mm high glazed fixed light",null,"No",{"v":2,"d":"2 "},null,{"$f":"ROUND(F528*G528,2)","v":{"v":0,"d":"0.00"}}]
[]
[{"v":60,"d":"60 "},null,"3362mm wide x 2400mm high glazed fixed light",null,"No",{"v":1,"d":"1 "},null,{"$f":"ROUND(F530*G530,2)","v":{"v":0,"d":"0.00"}}]
[]
[null,null,"6mm clear laminated glazed doors, including Clip 44 natural anodised aluminium frame"]
[]
[{"v":61,"d":"61 "},null,"Glazed single door in frame to suit opening size 853 x 2400mm high (Door type 3)",null,"No",{"v":10,"d":"10 "},null,{"$f":"ROUND(F534*G534,2)","v":{"v":0,"d":"0.00"}}]
[]
[{"v":62,"d":"62 "},null,"Glazed double door in frame to suit opening size 1666 x 2400mm high (door type 4)",null,"No",{"v":6,"d":"6 "},null,{"$f":"ROUND(F536*G536,2)","v":{"v":0,"d":"0.00"}}]
[]
[null,null,"FIRE DOORS"]
[]
[null,null,"Class B fire doors with \"Masonite\" commercial veneer"]
[]
[{"v":63,"d":"63 "},null,"44mm Class \"B\" fire single self closing door overall size 860 x 2032mm high with masonite veneer (on both sides of doors and 8mm hardwood edge strips all round, filled with vermiculite fire resistant compacted filling and intumescent strip to top of door  hung to steel frames (steel frames included but ironmongery elsewhere measured)",null,"No",{"v":3,"d":"3 "},null,{"$f":"ROUND(F542*G542,2)","v":{"v":0,"d":"0.00"}}]
[]
[{"v":64,"d":"64 "},null,"44mm Class \"B\" fire double self closing door overall size 1666 x 2400mm high with masonite veneer (on both sides of doors and 8mm hardwood edge strips all round, filled with vermiculite fire resistant compacted filling and intumescent strip to top of door  hung to steel frames (steel frames included but ironmongery elsewhere measured)",null,"No",{"v":3,"d":"3 "},null,{"$f":"ROUND(F544*G544,2)","v":{"v":0,"d":"0.00"}}]
[]
[]
[null,null,"Total for Partitions carried to Summary",{"$nulls":5},{"$f":"SUM(H375:H544)","v":{"v":0,"d":"0.00"}}]
[]
[null,null,"BILL NO 4"]
[]
[null,null,"FLOOR FINISHES"]
[]
[null,null,"PREAMBLES"]
[]
[null,null,"For preambles see \"Model Preambles for Trades\""]
[]
[null,null,"SUPPLEMENTARY PREAMBLES"]
[]
[null,null,"Fixing"]
[]
[null,null,"Floor coverings shall be fixed with adhesive as recommended by the manufacturers"]
[]
[null,null,"REMOVAL OF EXISTING FLOOR FINISHES IN LIFT LOBBIES"]
[]
[{"v":1,"d":"1 "},null,"Take out and remove carpet finishes",null,"m²",{"v":46,"d":"46 "},null,{"$f":"ROUND(F565*G565,2)","v":{"v":0,"d":"0.00"}}]
[]
[{"v":2,"d":"2 "},null,"Take out and remove porcelain tiles and make good screed",null,"m²",{"v":23,"d":"23 "},null,{"$f":"ROUND(F567*G567,2)","v":{"v":0,"d":"0.00"}}]
[]
[null,null,"SCREEDS"]
[]
[null,null,"Screeds steel floated, on concrete"]
[]
[{"v":3,"d":"3 "},null,"Pavelite in patching existing screeds",null,"m²",{"v":675,"d":"675 "},null,{"$f":"ROUND(F573*G573,2)","v":{"v":0,"d":"0.00"}}]
[]
[null,null,"VINYL FLOOR COVERINGS"]
[]
[null,null,"2mm Superflex fully flexible vinyl sheeting fixed with FloorworX No 62 adhesive to screed as per manufacturer's recommendation (self levelling screed elsewhere). All vinyl to be stripped after 48 hours using Floorworx Stripper, scrubbed using a diluted solution of Floorworx Rinse, and then sealed with 3 coats of FloorworX Silk Matt Sealant to architect's approval (Colour: Ash Grey MS122).  Installation to be done by an approved Floorworx installer"]
[]
[{"v":4,"d":"4 "},null,"On floors and landings",null,"m²",{"v":48,"d":"48 "},null,{"$f":"ROUND(F579*G579,2)","v":{"v":0,"d":"0.00"}}]
[]
[null,null,"\"Vanguard Collection Plantation\" (Colour: Ash Grey Oak) 2.5mm thick planks"]
[]
[{"v":5,"d":"5 "},null,"On floors and landings",null,"m²",{"v":627,"d":"627 "},null,{"$f":"ROUND(F583*G583,2)","v":{"v":0,"d":"0.00"}}]
[]
[null,null,"CARPET FLOOR COVERINGS"]
[]
[null,null,"\"Belgotex Berberpoint 920\" Nexbac (Colour: Scalable) carpet tiles"]
[]
[{"v":6,"d":"6 "},null,"On floors and landings",null,"m²",{"v":482,"d":"482 "},null,{"$f":"ROUND(F589*G589,2)","v":{"v":0,"d":"0.00"}}]
[]
[null,null,"\"Belgotex Blend\" (Colour: Raven) carpet tiles"]
[]
[{"v":7,"d":"7 "},null,"On floors and landings",null,"m²",{"v":306,"d":"306 "},null,{"$f":"ROUND(F593*G593,2)","v":{"v":0,"d":"0.00"}}]
[]
[null,null,"\"Vanguard Collection Stitch\" (Colour: Overcast) carpet tiles"]
[]
[{"v":8,"d":"8 "},null,"On floors and landings",null,"m²",{"v":329,"d":"329 "},null,{"$f":"ROUND(F597*G597,2)","v":{"v":0,"d":"0.00"}}]
[]
[null,null,"DIVIDING STRIPS"]
[]
[null,null,"\"Genesis\" floor trims"]
[]
[{"v":9,"d":"9 "},null,"3mm Silver transition trim",null,"m",{"v":200,"d":"200 "},null,{"$f":"ROUND(F603*G603,2)","v":{"v":0,"d":"0.00"}}]
[]
[null,null,"WORK TO EXISTING STAIRS"]
[]
[{"v":10,"d":"10 "},null,"Allow the budgetary amount of R40,000 for new timber treads to the stairs",null,"Item",{"v":1,"d":"1 "},{"v":40000,"d":"40,000.00"},{"$f":"ROUND(F607*G607,2)","v":{"v":40000,"d":"40,000.00"}}]
[]
[null,null,"Total for Floor Finishes carried to Summary",{"$nulls":5},{"$f":"SUM(H563:H607)","v":{"v":40000,"d":"40,000.00"}}]
[]
[null,null,"BILL NO 5"]
[]
[null,null,"IRONMONGERY"]
[]
[null,null,"HINGES, BOLTS, ETC"]
[]
[null,null,"\"Handles Inc\""]
[]
[{"v":1,"d":"1 "},null,"102 x 75mm Natural anodised aluminium butt hinges - by door frame manufacturer",null,"Pairs",90.5,null,"incl w frames"]
[]
[null,null,"LOCKS"]
[]
[null,null,"\"Cisa\""]
[]
[{"v":2,"d":"2 "},null,"Astral Knob cylinder (colour to match natural anodised handle)",null,"No",{"v":24,"d":"24 "},null,{"$f":"ROUND(F625*G625,2)","v":{"v":0,"d":"0.00"}}]
[]
[null,null,"HANDLES"]
[]
[null,null,"\"Handles Inc\""]
[]
[{"v":3,"d":"3 "},null,"Stainless steel offset T pull handle",null,"No",{"v":6,"d":"6 "},null,{"$f":"ROUND(F631*G631,2)","v":{"v":0,"d":"0.00"}}]
[]
[{"v":4,"d":"4 "},null,"76 x 152mm Stainless steel pull handle",null,"No",{"v":9,"d":"9 "},null,{"$f":"ROUND(F633*G633,2)","v":{"v":0,"d":"0.00"}}]
[]
[null,null,"\"Cisa\""]
[]
[{"v":5,"d":"5 "},null,"Slimline natural anodised aluminium lever handle set",null,"No",{"v":24,"d":"24 "},null,{"$f":"ROUND(F637*G637,2)","v":{"v":0,"d":"0.00"}}]
[]
[null,null,"DOOR CLOSERS"]
[]
[null,null,"\"Dorma\""]
[]
[{"v":6,"d":"6 "},null,"TS93G CAM action slide channel door closer",null,"No",{"v":21,"d":"21 "},null,{"$f":"ROUND(F643*G643,2)","v":{"v":0,"d":"0.00"}}]
[]
[null,null,"SUNDRIES"]
[]
[null,null,"\"Handles Inc\""]
[]
[{"v":7,"d":"7 "},null,"Stainless steel CZ87231SC floor mounted door stop, plugged",null,"No",{"v":36,"d":"36 "},null,{"$f":"ROUND(F649*G649,2)","v":{"v":0,"d":"0.00"}}]
[]
[null,null,"PUSH AND KICK PLATES"]
[]
[{"v":8,"d":"8 "},null,"75 x 300mm stainless steel push plates",null,"No",{"v":9,"d":"9 "},null,{"$f":"ROUND(F653*G653,2)","v":{"v":0,"d":"0.00"}}]
[]
[{"v":9,"d":"9 "},null,"150 x 750mm stainless steel kick plate",null,"No",{"v":18,"d":"18 "},null,{"$f":"ROUND(F655*G655,2)","v":{"v":0,"d":"0.00"}}]
[]
[null,null,"Total for Ironmongery carried to Summary",{"$nulls":5},{"$f":"SUM(H618:H655)","v":{"v":0,"d":"0.00"}}]
[]
[null,null,"BILL NO 6"]
[]
[null,null,"TILING"]
[]
[null,null,"For preambles see \"Model Preambles for Trades\""]
[]
[null,null,"SUPPLEMENTARY PREAMBLES"]
[]
[null,null,"Fixing"]
[]
[null,null,"Unless described as \"fixed with adhesive to plaster (plaster elsewhere)\" descriptions of tiling on brick or concrete walls, columns, etc shall be deemed to include 1:4 cement plaster backing and descriptions of tiling on concrete floors etc shall be deemed to include 1:3 plaster bedding"]
[]
[null,null,"Ceramic, porcelain, marble and granite tiles are to be fixed and grouted with suitable adhesives and grouts as recommended by the manufacturer of the tiles"]
[]
[null,null,"Taking delivery"]
[]
[null,null,"The employer will purchase some of the tiles directly from the suppliers and the contractor will take delivery thereof. Taking delivery of goods or articles by the contractor on site shall mean getting in, unpacking, checking that the quantity is correct and that the goods are complete and undamaged, submitting a report thereof to the interested parties and issuing vouchers for the receipt of such goods.  The contractor shall store the goods and will be held responsible for the safety thereof and indemnify the employer against any damage or loss which may occur"]
[]
[null,null,"FLOOR TILING"]
[]
[null,null,"\"Etienne Tiles Neo\" (Colour: PEI 4) 1,000 X 1,000mm fixed with adhesive to screed and flush pointed with tinted grout"]
[]
[{"v":1,"d":"1 "},null,"On floors and landings",null,"m²",{"v":113,"d":"113 "},null,{"$f":"ROUND(F681*G681,2)","v":{"v":0,"d":"0.00"}}]
[]
[null,null,"WALL TILING"]
[]
[null,null,"Take delivery of and install wall tiles PC Sum R500 per m2 supplied and delivered and fixed with adhesive to plaster (plaster elsewhere) and flush pointed with tinted jointing compound"]
[]
[{"v":2,"d":"2 "},null,"Splashbacks",null,"m²",{"v":2,"d":"2 "},null,{"$f":"ROUND(F687*G687,2)","v":{"v":0,"d":"0.00"}}]
[]
[null,null,"Total for Tiling carried to Summary",{"$nulls":5},{"$f":"SUM(H675:H687)","v":{"v":0,"d":"0.00"}}]
[]
[null,null,"BILL NO 7"]
[]
[null,null,"PAINTWORK"]
[]
[null,null,"For preambles see \"Model Preambles for Trades\""]
[]
[null,null,"SUPPLEMENTARY PREAMBLES"]
[]
[null,null,"COLOURS"]
[]
[null,null,"Unless otherwise described all paintwork shall be deemed to have a colour value in excess of 7 on the Munsell system in accordance with SANS 1091"]
[]
[null,null,"PAINT SPECIFICATIONS"]
[]
[null,null,"All painting, including preparation of surfaces, priming, undercoating and finishing shall be done in accordance with \"Plascon\" specifications unless otherwise described"]
[]
[null,null,"PAINTWORK TO NEW WORK ON"]
[]
[null,null,"ON FLOATED PLASTER SURFACES WITH"]
[]
[null,null,"One coat Professional Water Based Gypsum Sealer (PGS1) and two coats Plascon Professional Superior Low Sheen (PEM1000) to approved colour."]
[]
[{"v":1,"d":"1 "},null,"Partitions",null,"m²",{"v":2302,"d":"2,302 "},null,{"$f":"ROUND(F713*G713,2)","v":{"v":0,"d":"0.00"}}]
[]
[{"v":2,"d":"2 "},null,"Soffits",null,"m²",{"v":21,"d":"21 "},null,{"$f":"ROUND(F715*G715,2)","v":{"v":0,"d":"0.00"}}]
[]
[null,null,"ON PLASTERBOARD SURFACES"]
[]
[null,null,"One coat Professional Water Based Gypsum Sealer (PGS1) and two coats Plascon Professional Superior Low Sheen (PEM1000) to approved colour."]
[]
[{"v":3,"d":"3 "},null,"Ceilings and cornices",null,"m²",{"v":626,"d":"626 "},null,{"$f":"ROUND(F721*G721,2)","v":{"v":0,"d":"0.00"}}]
[]
[null,null,"ON WOOD SURFACES WITH"]
[]
[null,null,"One coat Plascon Multi Surface Primer (WUP1) and two coats Plascon Velvaglo Water based to approved colour"]
[]
[{"v":4,"d":"4 "},null,"Doors",null,"m²",{"v":135,"d":"135 "},null,{"$f":"ROUND(F727*G727,2)","v":{"v":0,"d":"0.00"}}]
[]
[null,null,"PAINTWORK, ETC TO PREVIOUSLY PAINTED WORK ON"]
[]
[null,null,"PREPARATORY WORK TO EXISTING WORK"]
[]
[null,null,"Previously painted plastered surfaces"]
[]
[null,null,"Surfaces shall be thoroughly washed down and allowed to dry completely before any paint is applied. Blistered or peeling paint shall be completely removed and cracks shall be opened, filled with a suitable filler and finished smooth"]
[]
[null,null,"Previously painted wood surfaces"]
[]
[null,null,"Surfaces shall be thoroughly cleaned down.  Blistered or peeling paint shall be completely removed and cracks and crevices shall be primed, filled with suitable filler and finished smooth"]
[]
[null,null,"ON FLOATED PLASTER SURFACES WITH"]
[]
[null,null,"One coat Professional Water Based Gypsum Sealer (PGS1) and two coats Plascon Professional Superior Low Sheen (PEM1000) to approved colour."]
[]
[{"v":5,"d":"5 "},null,"Internal walls in good condition",null,"m²",{"v":1052,"d":"1,052 "},null,{"$f":"ROUND(F745*G745,2)","v":{"v":0,"d":"0.00"}}]
[]
[null,null,"ON WOOD SURFACES"]
[]
[null,null,"One coat Plascon Multi Surface Primer (WUP1) and two coats Plascon Velvaglo Water based to approved colour"]
[]
[{"v":6,"d":"6 "},null,"Window ledges",null,"m²",{"v":132,"d":"132 "},null,{"$f":"ROUND(F751*G751,2)","v":{"v":0,"d":"0.00"}}]
[]
[null,null,"Total for Paintwork carried to Summary",{"$nulls":5},{"$f":"SUM(H711:H751)","v":{"v":0,"d":"0.00"}}]
[]
[null,null,"BILL NO 8"]
[]
[null,null,"PLUMBING AND DRAINAGE"]
[]
[null,null,"SUPPLEMENTARY PREAMBLES"]
[]
[null,null,"Preambles"]
[]
[null,null,"For preambles see \"Model Preambles for Trades\""]
[]
[null,null,"National Building Regulations"]
[]
[null,null,"All Construction and Materials to be in accordance with the requirements of SANS 10400 \"The Application of National Building Regulations\""]
[]
[null,null,"Rates"]
[]
[null,null,"Rates for all piping, fittings, etc shall include for all fixing in position of fittings, cutting of chases in brickwork or concrete, excavation of trenches, backfilling, etc unless otherwise described"]
[]
[null,null,"Diameter of pipes"]
[]
[null,null,"Diameters stated for pipes, traps, valves, etc are internal diameters, except uPVC, polyethylene, stainless steel and copper pipes for which external diameters are stated"]
[]
[null,null,"Laying, backfilling, bedding, etc of pipes"]
[]
[null,null,"Pipes shall be laid and bedded in accordance with manufacturers' instructions and trenches shall be carefully backfilled"]
[]
[null,null,"Where no manufacturers' instructions exist, pipes shall be laid in accordance with the relevant section of SANS 2001"]
[]
[null,null,"PVC-U pipes and fittings"]
[]
[null,null,"Sewer and drainage pipes and fittings shall be jointed and sealed with butyl rubber rings  Soil, waste and vent pipes and fittings shall be solvent weld jointed or sealed with butyl rubber rings"]
[]
[null,null,"SANITARY FITTINGS"]
[]
[null,null,"\"Franke\""]
[]
[{"v":1,"d":"1 "},null,"Cascade drop-in stainless steel sink size 1200 x 500 x 157 (Code: SIN F CD 621 NO) including \"Dutton\" PVC double bowl waste and plug Code 40DBBLBO",null,"No",{"v":4,"d":"4 "},null,{"$f":"ROUND(F791*G791,2)","v":{"v":0,"d":"0.00"}}]
[]
[null,null,"TAPS, VALVES, ETC"]
[]
[null,null,"\"Franke\""]
[]
[{"v":2,"d":"2 "},null,"Saturn Cube stainless steel sink mixer Code 1150036 including and Schell regulating angle valve Code SCH0543",null,"No",{"v":4,"d":"4 "},null,{"$f":"ROUND(F797*G797,2)","v":{"v":0,"d":"0.00"}}]
[]
[{"v":3,"d":"3 "},null,"Dish washer tap including Schell regulating angle valve DZR 15 x15",null,"No",{"v":4,"d":"4 "},null,{"$f":"ROUND(F799*G799,2)","v":{"v":0,"d":"0.00"}}]
[]
[null,null,"HOT WATER HEATERS"]
[]
[null,null,"Bibo\""]
[]
[{"v":4,"d":"4 "},null,"\"Bar\" boiling and chilled water supplier",null,"No",{"v":5,"d":"5 "},null,{"$f":"ROUND(F805*G805,2)","v":{"v":0,"d":"0.00"}}]
[]
[null,null,"WATER SUPPLY TO AND DRAINAGE FROM FITTINGS"]
[]
[{"v":5,"d":"5 "},null,"Provide the sum of R80,000 (eighty thousand rand) for internal first fix  plumbing and drainage and connections into the existing water and waste reticulation systems",null,"Item",{"v":1,"d":"1 "},{"v":80000,"d":"80,000.00"},{"$f":"ROUND(F809*G809,2)","v":{"v":80000,"d":"80,000.00"}}]
[]
[{"v":6,"d":"6 "},null,"Profit and attendance",null,"Item",{"v":1,"d":"1 "},null,{"$f":"ROUND(F811*G811,2)","v":{"v":0,"d":"0.00"}}]
[]
[null,null,"Total for Plumbing and Drainage carried to Summary",{"$nulls":5},{"$f":"SUM(H785:H811)","v":{"v":80000,"d":"80,000.00"}}]
[]
[null,null,"BILL NO 9"]
[]
[null,null,"RENOVATION OF EXISTING BATHROOMS 7TH AND 8TH FLOORS"]
[]
[null,null,"PREAMBLES"]
[]
[null,null,"For preambles see \"Model Preambles for Trades\""]
[]
[null,null,"SUPPLEMENTARY PREAMBLES"]
[]
[null,null,"Trade names"]
[]
[null,null,"Wherever a trade name for any product has been described, the Tenderer's attention is drawn to the fact that any other product of equal quality may be used subject to the written approval being obtained prior to the closing date for submission of tenders"]
[]
[null,null,"BILL NO 9.1"]
[]
[null,null,"ALTERATIONS"]
[]
[null,null,"REMOVAL OF EXISTING WORK"]
[]
[null,null,"SUPPLEMENTARY PREAMBLES"]
[]
[null,null,"View site"]
[]
[null,null,"Before submitting his tender the contractor shall visit the site and satisfy himself as to the nature and extent of the work to be done and the value of the materials contained in the buildings or portions of the buildings to be demolished.  No claim for any variations of the contract sum in respect of the nature and extent of the work or of inferior or damaged materials will be entertained"]
[]
[null,null,"General"]
[]
[null,null,"The contractor shall carry out the whole of the works with as little mess and noise as possible and with a minimum of disturbance to adjoining premises and their tenants.  He shall provide proper protection and provide, erect and remove when directed, any temporary protection all to the satisfaction of the principal agent"]
[]
[null,null,"Water supply pipes and other piping that may be encountered and found necessary to disconnect or cut, shall be effectually stopped off or grubbed up and removed, and any new connections that may be necessary shall be made with proper fittings, to the satisfaction of the principal agent"]
[]
[null,null,"Making good of finishes shall include making good of the brick and concrete surfaces onto which the new finishes are applied, where necessary"]
[]
[null,null,"The contractor will be required to take all dimensions affecting the existing buildings on the site and he will be held solely responsible for the accuracy of all such dimensions where used in the manufacture of new items (doors, windows, fittings, etc)"]
[]
[null,null,"GENERAL"]
[]
[{"v":1,"d":"1 "},null,"The tenderer is to make an allowance for the demolitions as listed below and any other alterations as noted at the site visit",null,"Item",{"v":1,"d":"1 "},null,{"$f":"ROUND(F853*G853,2)","v":{"v":0,"d":"0.00"}}]
[]
[null,null,"Breaking down and removing unreinforced concrete"]
[]
[{"v":2,"d":"2 "},null,"Urinal steps",null,"m3",0.6,null,"included above"]
[]
[null,null,"Hacking up/off and removing floor and wall finishes including  removing mortar bed or backing under tiles and preparing concrete or brick surfaces for new screed or plaster finishes"]
[]
[{"v":3,"d":"3 "},null,"Internal plaster from walls, columns and beams",null,"m2",{"v":100,"d":"100 "},null,"included above"]
[]
[{"v":4,"d":"4 "},null,"30mm Terrazzo floor tiles",null,"m2",{"v":54,"d":"54 "},null,"included above"]
[]
[{"v":5,"d":"5 "},null,"Coved terrazzo skirting 100mm high",null,"m",{"v":54,"d":"54 "},null,"included above"]
[]
[{"v":6,"d":"6 "},null,"600 x 600mm Porcelain tiles to walls",null,"m2",{"v":37,"d":"37 "},null,"included above"]
[]
[null,null,"Removal of toilet partitions"]
[]
[{"v":7,"d":"7 "},null,"Remove 6 toilet partitions with 5 dividing walls and 6 doors including all toilet roll holders and ironmongery",null,"m",{"v":2,"d":"2 "},null,"included above"]
[]
[null,null,"Removal of sanitary fittings"]
[]
[{"v":8,"d":"8 "},null,"Vitreous china wash hand basin",null,"No",{"v":8,"d":"8 "},null,"included above"]
[]
[{"v":9,"d":"9 "},null,"Vitreous china WC pan with cistern",null,"No",{"v":12,"d":"12 "},null,"included above"]
[]
[{"v":10,"d":"10 "},null,"Vitreous china urinal",null,"No",{"v":3,"d":"3 "},null,"included above"]
[]
[null,null,"Removal of counter tops"]
[]
[{"v":11,"d":"11 "},null,"Counter top size 2742x 450mm",null,"No",{"v":2,"d":"2 "},null,"included above"]
[]
[{"v":12,"d":"12 "},null,"Counter top size 4200 x 650mm",null,"No",{"v":1,"d":"1 "},null,"included above"]
[]
[null,null,"Taking out and retaining sanware accessories"]
[]
[{"v":13,"d":"13 "},null,"Hand dryer",null,"No",{"v":2,"d":"2 "},null,"included above"]
[]
[null,null,"Taking out and removing sanware accessories"]
[]
[{"v":14,"d":"14 "},null,"Soap dispenser",null,"No",{"v":2,"d":"2 "},null,"included above"]
[]
[{"v":15,"d":"15 "},null,"Paper towel dispenser",null,"No",{"v":3,"d":"3 "},null,"included above"]
[]
[{"v":16,"d":"16 "},null,"Paper towel disposal bin",null,"No",{"v":2,"d":"2 "},null,"included above"]
[]
[null,null,"Taking out and removing glass and mirrors"]
[]
[{"v":17,"d":"17 "},null,"Mirror 1000 x 1000mm high from wall",null,"No",{"v":7,"d":"7 "},null,"included above"]
[]
[{"v":18,"d":"18 "},null,"Mirror 500 x 1800mm high from wall",null,"No",{"v":2,"d":"2 "},null,"included above"]
[]
[null,null,"BILL NO 9.2"]
[]
[null,null,"CEILINGS AND PARTITIONS"]
[]
[null,null,"SUPPLEMENTARY PREAMBLES"]
[]
[null,null,"Fixing"]
[]
[null,null,"Items described as \"nailed\" shall be deemed to be fixed with hardened steel nails or pins, or to be shot-pinned, to brickwork or concrete"]
[]
[null,null,"Items described as \"plugged\" shall be deemed to include screwing to fibre, plastic or metal plugs at not exceeding 500mm centres, and where described as \"bolted\", the bolts have been given elsewhere"]
[]
[null,null,"Steel components"]
[]
[null,null,"All steel components for ceilings, partitions, etc are to be galvanised in accordance with SANS 121"]
[]
[null,null,"SUSPENDED CEILINGS"]
[]
[null,null,"12mm \"Rhinoboard\" or equal approved gypsum plastered ceiling fixed print side up with 38mm galvanized serrated nails at 150mm centres with 48mm wide strips of \"Fibatape\" fixed over joints and the whole ceiling finished with a 6mm thick coat of \"Cretestone\" gypsum skim plaster trowelled to a smooth polished surface, all in strict accordance, with the manufacturer's instructions"]
[]
[{"v":19,"d":"19 "},null,"Horizontal ceilings suspended not exceeding 1m below concrete soffits",null,"m²",{"v":44,"d":"44 "},null,{"$f":"ROUND(F925*G925,2)","v":{"v":0,"d":"0.00"}}]
[]
[null,null,"\"Donn\" 47 x 35mm SM25 aluminium powdercoated white recessed shadowline trim to suspended ceilings"]
[]
[{"v":20,"d":"20 "},null,"Z-Shaped shadowline trim",null,"m",{"v":38,"d":"38 "},null,{"$f":"ROUND(F929*G929,2)","v":{"v":0,"d":"0.00"}}]
[]
[null,null,"TOILET CUBICLES"]
[]
[null,null,"Facade Classic Melamine toilet cubicles compirsing partitions, stiles and doors, neatly framed in natrual anodised aluminium with mitred corners and installed with all necessary aluminium natural anodised extrusions, top rails, fixing components and standard ironmongery comprising aluminium butt hinges, stainless steel indicator bolts and anti-rattle keeps, stainless steel coat hooks/door stops and excluding toilet roll holders"]
[]
[{"v":21,"d":"21 "},null,"Partition 1 800 x 1 800mm high (2025mm high overall)",null,"No",{"v":10,"d":"10 "},null,{"$f":"ROUND(F935*G935,2)","v":{"v":0,"d":"0.00"}}]
[]
[{"v":22,"d":"22 "},null,"Partition 300 x 1 800mm high",null,"No",{"v":2,"d":"2 "},null,{"$f":"ROUND(F937*G937,2)","v":{"v":0,"d":"0.00"}}]
[]
[{"v":23,"d":"23 "},null,"Wall stile 125 x 1 830mm high",null,"No",{"v":2,"d":"2 "},null,{"$f":"ROUND(F939*G939,2)","v":{"v":0,"d":"0.00"}}]
[]
[{"v":24,"d":"24 "},null,"Full stile 245 x 1 850mm high",null,"No",{"v":10,"d":"10 "},null,{"$f":"ROUND(F941*G941,2)","v":{"v":0,"d":"0.00"}}]
[]
[{"v":25,"d":"25 "},null,"Door 750 x 1 830mm high",null,"No",{"v":12,"d":"12 "},null,{"$f":"ROUND(F943*G943,2)","v":{"v":0,"d":"0.00"}}]
[]
[null,null,"Cubicle Solutions urinal screens with12mm Cast Acrylic Perspex 750mm high x 450mm wide code: CSPSXUSWB (colour: light grey frosted). Urinal Screens to be fixed to wall using 304 grade stainless steel brackets (code: CSURBRKT)."]
[]
[{"v":26,"d":"26 "},null,"Urinal dividers 450mm wide x 750mm high",null,"No",{"v":3,"d":"3 "},null,{"$f":"ROUND(F947*G947,2)","v":{"v":0,"d":"0.00"}}]
[]
[null,null,"BILL NO 9.3"]
[]
[null,null,"METALWORK"]
[]
[null,null,"SKIRTINGS"]
[]
[null,null,"Brushed aluminium skirtings"]
[]
[{"v":27,"d":"27 "},null,"120mm High x 2mm thick brushed aluminium skirting epoxy fixed to plastered wall",null,"m",{"v":12,"d":"12 "},null,{"$f":"ROUND(F957*G957,2)","v":{"v":0,"d":"0.00"}}]
[]
[null,null,"BILL NO 9.4"]
[]
[null,null,"PLASTERING"]
[]
[null,null,"SCREEDS"]
[]
[null,null,"Screeds on concrete"]
[]
[{"v":28,"d":"28 "},null,"30mm Thick on floors and landings",null,"m²",{"v":54,"d":"54 "},null,{"$f":"ROUND(F967*G967,2)","v":{"v":0,"d":"0.00"}}]
[]
[null,null,"INTERNAL PLASTER"]
[]
[null,null,"Two coat plaster with 15mm cement plaster and gypsum skimfloat with steel trowelled finish on brickwork"]
[]
[{"v":29,"d":"29 "},null,"On walls",null,"m²",{"v":100,"d":"100 "},null,{"$f":"ROUND(F973*G973,2)","v":{"v":0,"d":"0.00"}}]
[]
[{"v":30,"d":"30 "},null,"On narrow widths",null,"m²",{"v":10,"d":"10 "},null,{"$f":"ROUND(F975*G975,2)","v":{"v":0,"d":"0.00"}}]
[]
[null,null,"BILL NO 9.5"]
[]
[null,null,"PLUMBING AND DRAINAGE"]
[]
[null,null,"SANITARY FITTINGS"]
[]
[null,null,"\"Duravit\""]
[]
[{"v":31,"d":"31 "},null,"\"D-Code\" undermount wash hand basin Code DV03955500282",null,"No",{"v":7,"d":"7 "},null,{"$f":"ROUND(F985*G985,2)","v":{"v":0,"d":"0.00"}}]
[]
[{"v":32,"d":"32 "},null,":Gio\" Bella Ivy Evora close coupled WC suite and seat",null,"No",{"v":10,"d":"10 "},null,{"$f":"ROUND(F987*G987,2)","v":{"v":0,"d":"0.00"}}]
[]
[{"v":33,"d":"33 "},null,"\"D-code\" concealed inlet urinal Code DC08293including urinal trap Code TR05112 and urinal water inlet mechanism",null,"No",{"v":3,"d":"3 "},null,{"$f":"ROUND(F989*G989,2)","v":{"v":0,"d":"0.00"}}]
[]
[null,null,"CISTERNS"]
[]
[null,null,"\"Geberit\""]
[]
[{"v":34,"d":"34 "},null,"\"Geberit Type 50\" urinal control pneumatic jet Code 116.016B including urinal installation set 115.801 and \"Schell\" regulating angle valve Code SCH0543",null,"No",{"v":3,"d":"3 "},null,{"$f":"ROUND(F995*G995,2)","v":{"v":0,"d":"0.00"}}]
[]
[null,null,"WASTE UNIONS ETC"]
[]
[{"v":35,"d":"35 "},null,"\"Gio\" 32mm slotted chromium plated clicker basin waste Code GIO2025",null,"No",{"v":7,"d":"7 "},null,{"$f":"ROUND(F999*G999,2)","v":{"v":0,"d":"0.00"}}]
[]
[null,null,"TRAPS, ETC"]
[]
[{"v":36,"d":"36 "},null,"\"Dutton\" sink plain  PVC P-trap CodeTRA PVC40DB3A",null,"No",{"v":7,"d":"7 "},null,{"$f":"ROUND(F1003*G1003,2)","v":{"v":0,"d":"0.00"}}]
[]
[null,null,"TAPS, VALVES, ETC"]
[]
[{"v":37,"d":"37 "},null,"\"Hansgrohe 70\" Decor basin mixer Code CO31733 including \"Schell\" regulating angle valve Code SCH0543",null,"No",{"v":7,"d":"7 "},null,{"$f":"ROUND(F1007*G1007,2)","v":{"v":0,"d":"0.00"}}]
[]
[{"v":38,"d":"38 "},null,"\"Gio\" square forced shut off trigger spray Code SPR TRI DIB 575",null,"No",{"v":4,"d":"4 "},null,{"$f":"ROUND(F1009*G1009,2)","v":{"v":0,"d":"0.00"}}]
[]
[null,null,"COUNTERTOPS"]
[]
[{"v":39,"d":"39 "},null,"Granite Projects\" 20mm thick counter top size 2742x 650mm including backsplash and mitred edges",null,"No",{"v":2,"d":"2 "},null,{"$f":"ROUND(F1013*G1013,2)","v":{"v":0,"d":"0.00"}}]
[]
[{"v":40,"d":"40 "},null,"\"Granite Projects\" 20mm thick counter top size 4200 x 650mm including backsplash and mitred edges",null,"No",{"v":1,"d":"1 "},null,{"$f":"ROUND(F1015*G1015,2)","v":{"v":0,"d":"0.00"}}]
[]
[null,null,"SANITARY ACCESSORIES"]
[]
[null,null,"\"Prime\""]
[]
[{"v":41,"d":"41 "},null,"Stainless steel waste bin Code ACC PRI 2567",null,"No",{"v":2,"d":"2 "},null,{"$f":"ROUND(F1021*G1021,2)","v":{"v":0,"d":"0.00"}}]
[]
[{"v":42,"d":"42 "},null,"TR2 lockable toilet roll holder",null,"No",{"v":10,"d":"10 "},null,{"$f":"ROUND(F1023*G1023,2)","v":{"v":0,"d":"0.00"}}]
[]
[{"v":43,"d":"43 "},null,"Foam soap dispensers top up 1000ml Code 25615",null,"No",{"v":7,"d":"7 "},null,{"$f":"ROUND(F1025*G1025,2)","v":{"v":0,"d":"0.00"}}]
[]
[{"v":44,"d":"44 "},null,"Short round wall-mounted toilet brush Code 18 547",null,"No",{"v":10,"d":"10 "},null,{"$f":"ROUND(F1027*G1027,2)","v":{"v":0,"d":"0.00"}}]
[]
[{"v":45,"d":"45 "},null,"Stainless steel sanitary bin 16l",null,"No",{"v":5,"d":"5 "},null,{"$f":"ROUND(F1029*G1029,2)","v":{"v":0,"d":"0.00"}}]
[]
[null,null,"WATER SUPPLY AND DRAINAGE INSTALLATIONS"]
[]
[{"v":46,"d":"46 "},null,"Budgetary Allowance of R100,000 for plumbing and drainage installations",null,"Item",{"v":1,"d":"1 "},{"v":100000,"d":"100,000.00"},{"$f":"ROUND(F1033*G1033,2)","v":{"v":100000,"d":"100,000.00"}}]
[]
[null,null,"BILL NO 9.6"]
[]
[null,null,"TILING"]
[]
[null,null,"SUPPLEMENTARY PREAMBLES"]
[]
[null,null,"Fixing"]
[]
[null,null,"Unless described as \"fixed with adhesive to plaster (plaster elsewhere)\" descriptions of tiling on brick or concrete walls, columns, etc shall be deemed to include 1:4 cement plaster backing and descriptions of tiling on concrete floors etc shall be deemed to include 1:3 plaster bedding"]
[]
[null,null,"Ceramic, porcelain, marble and granite tiles are to be fixed and grouted with suitable adhesives and grouts as recommended by the manufacturer of the tiles"]
[]
[null,null,"FLOOR TILING"]
[]
[null,null,"900 x 900mm White Porcelain tiles (Allow the PC Sum of R400/m\"² for supply and delivery) fixed with an approved adhesive on cement screed (screed elsewhere measured) and jointed with 1mm white grout line"]
[]
[{"v":47,"d":"47 "},null,"On floors and landings",null,"m²",{"v":30,"d":"30 "},null,{"$f":"ROUND(F1051*G1051,2)","v":{"v":0,"d":"0.00"}}]
[]
[null,null,"900 x 900mm Grey Porcelain tiles (Allow the PC Sum of R400/m\"² for supply and delivery) fixed with an approved adhesive on cement screed (screed elsewhere measured) and jointed with 1mm grey grout line"]
[]
[{"v":48,"d":"48 "},null,"On floors and landings",null,"m²",{"v":24,"d":"24 "},null,{"$f":"ROUND(F1055*G1055,2)","v":{"v":0,"d":"0.00"}}]
[]
[null,null,"WALL TILING"]
[]
[null,null,"900 x 900mm White Porcelain tiles (Allow the PC Sum of 400/m\"² for supply and delivery) fixed with an approved adhesive on cement plaster (plaster elsewhere measured) and jointed with 1mm white grout line"]
[]
[{"v":49,"d":"49 "},null,"On walls",null,"m²",{"v":18,"d":"18 "},null,{"$f":"ROUND(F1061*G1061,2)","v":{"v":0,"d":"0.00"}}]
[]
[null,null,"Steel Tiling Trim"]
[]
[{"v":50,"d":"50 "},null,"Kirk Marketing (code SLI100) stainless steel tile listello to finish top of tile",null,"m",{"v":12,"d":"12 "},null,{"$f":"ROUND(F1065*G1065,2)","v":{"v":0,"d":"0.00"}}]
[]
[null,null,"BILL NO 9.7"]
[]
[null,null,"MIRRORS, ETC"]
[]
[null,null,"6mm Silvered float glass copper backed mirrors with polished edges; concealed fixed to walls"]
[]
[{"v":51,"d":"51 "},null,"Mirror 500 x 1500mm high with rounded corners",null,"No",{"v":10,"d":"10 "},null,{"$f":"ROUND(F1073*G1073,2)","v":{"v":0,"d":"0.00"}}]
[]
[{"v":52,"d":"52 "},null,"Mirror 884 x 2800mm high",null,"No",{"v":2,"d":"2 "},null,{"$f":"ROUND(F1075*G1075,2)","v":{"v":0,"d":"0.00"}}]
[]
[null,null,"BILL NO 9.8"]
[]
[null,null,"PAINTWORK ETC TO NEW WORK"]
[]
[null,null,"ON PLASTERED SURFACES"]
[]
[null,null,"One coat Professional Water Based Gypsum Sealer (PGS1) and two coats Plascon Professional Superior Low Sheen (PEM1000) to approved colour."]
[]
[{"v":53,"d":"53 "},null,"On walls",null,"m²",{"v":100,"d":"100 "},null,{"$f":"ROUND(F1085*G1085,2)","v":{"v":0,"d":"0.00"}}]
[]
[null,null,"One coat Professional Water Based Gypsum Sealer (PGS1) and two coats Plascon Professional Superior Low Sheen (PEM1000) to approved colour."]
[]
[{"v":54,"d":"54 "},null,"On partitions",null,"m²",{"v":24,"d":"24 "},null,{"$f":"ROUND(F1089*G1089,2)","v":{"v":0,"d":"0.00"}}]
[]
[null,null,"One coat Professional Water Based Gypsum Sealer (PGS1) and two coats Plascon Professional Super Matt (PEM900) to approved colour."]
[]
[{"v":55,"d":"55 "},null,"On ceilings",null,"m²",{"v":44,"d":"44 "},null,{"$f":"ROUND(F1093*G1093,2)","v":{"v":0,"d":"0.00"}}]
[]
[null,null,"PAINTWORK ETC TO PREVIOUSLY PAINTED WORK"]
[]
[null,null,"ON PLASTERED SURFACES"]
[]
[null,null,"One coat Professional Water Based Gypsum Sealer (PGS1) and two coats Plascon Professional Superior Low Sheen (PEM1000) to approved colour."]
[]
[{"v":56,"d":"56 "},null,"On soffits",null,"m²",{"v":10,"d":"10 "},null,{"$f":"ROUND(F1101*G1101,2)","v":{"v":0,"d":"0.00"}}]
[]
[null,null,"ON WOOD"]
[]
[null,null,"Sand down to break surface gloss, brush down and wipe off to remove all dust and dirt, apply one coat wood primer, one coat universal undercoat and two coats \"Plascon Velvaglo\" or other approved polyurethane enamel. (Colour)"]
[]
[{"v":57,"d":"57 "},null,"On doors and frames",null,"m²",{"v":4,"d":"4 "},null,{"$f":"ROUND(F1107*G1107,2)","v":{"v":0,"d":"0.00"}}]
[]
[null,null,"BILL NO 9.9"]
[]
[null,null,"ELECTRICAL INSTALLATION"]
[]
[{"v":58,"d":"58 "},null,"Provide the sum of R50,000.00 (fifty thousand rand) for the electrical installation",null,"Item",{"v":1,"d":"1 "},{"v":50000,"d":"50,000.00"},{"$f":"ROUND(F1113*G1113,2)","v":{"v":50000,"d":"50,000.00"}}]
[]
[{"v":59,"d":"59 "},null,"Profit and attendance",null,"Item",{"v":1,"d":"1 "},null,{"$f":"ROUND(F1115*G1115,2)","v":{"v":0,"d":"0.00"}}]
[]
[null,null,"Total for Renovations of Bathrooms carried to Summary ",{"$nulls":5},{"$f":"SUM(H822:H1115)","v":{"v":150000,"d":"150,000.00"}}]
[]
[null,null,"BILL NO 10"]
[]
[null,null,"ELECTRICAL INSTALLATION"]
[]
[null,null,"ELECTRICAL INSTALLATION"]
[]
[{"v":1,"d":"1 "},null,"Allow the Budgetary Amount R1,600.000 for the design, supply and installation of the electrical work including fitting of light fittings (fittings allowed elsewhere), the cutting of holes through ceilings, the supply and fitting of cover plates and switches, conduits, DB Boards, meters all in accordance with the attached  designer's drawings P/1982/07/RF/40 and P/1982/08/RF/40 - refer Addendum B",null,"Item",{"v":1,"d":"1 "},null,{"$f":"ROUND(F1125*G1125,2)","v":{"v":0,"d":"0.00"}}]
[]
[{"v":2,"d":"2 "},null,"Profit and attendance",null,"Item",{"v":1,"d":"1 "},null,{"$f":"ROUND(F1127*G1127,2)","v":{"v":0,"d":"0.00"}}]
[]
[null,null,"The entire installation is to conform to all SANS10142 requirements and the contractor must complete a Certificate of Compliance in this regard"]
[]
[null,null,"LIGHT FITTINGS"]
[]
[{"v":3,"d":"3 "},null,"Allow the Budgetary Amount of R500,000.00 (five hundred thousand rand) for light fittings",null,"Item",{"v":1,"d":"1 "},{"v":500000,"d":"500,000.00"},{"$f":"ROUND(F1133*G1133,2)","v":{"v":500000,"d":"500,000.00"}}]
[]
[{"v":4,"d":"4 "},null,"Profit and attendance",null,"Item",{"v":1,"d":"1 "},null,{"$f":"ROUND(F1135*G1135,2)","v":{"v":0,"d":"0.00"}}]
[]
[null,null,"Total for Electrical Installation carried to Summary",{"$nulls":5},{"$f":"SUM(H1124:H1135)","v":{"v":500000,"d":"500,000.00"}}]
[]
[null,null,"BILL NO 11"]
[]
[null,null,"MECHANICAL INSTALLATION"]
[]
[null,null,"MECHANICAL INSTALLATION"]
[]
[{"v":1,"d":"1 "},null,"Provide the sum of R900,000 (nine hundred thousand rand) for mechanical and ventilation",null,"Item",{"v":1,"d":"1 "},{"v":900000,"d":"900,000.00"},{"$f":"ROUND(F1145*G1145,2)","v":{"v":900000,"d":"900,000.00"}}]
[]
[{"v":2,"d":"2 "},null,"Profit and attendance",null,"Item",{"v":1,"d":"1 "},null,{"$f":"ROUND(F1147*G1147,2)","v":{"v":0,"d":"0.00"}}]
[]
[null,null,"Total for Mechanical Installation carried to Summary",{"$nulls":5},{"$f":"SUM(H1144:H1147)","v":{"v":900000,"d":"900,000.00"}}]
[]
[null,null,"BILL NO 12"]
[]
[null,null,"FIRE PROTECTION AND DETECTION"]
[]
[null,null,"FIRE SERVICES"]
[]
[{"v":1,"d":"1 "},null,"Provide the sum of R180,000 (one hundred and eighty thousand rand) for fire services",null,"Item",{"v":1,"d":"1 "},{"v":180000,"d":"180,000.00"},{"$f":"ROUND(F1157*G1157,2)","v":{"v":180000,"d":"180,000.00"}}]
[]
[{"v":2,"d":"2 "},null,"Profit and attendance",null,"Item",{"v":1,"d":"1 "},null,{"$f":"ROUND(F1159*G1159,2)","v":{"v":0,"d":"0.00"}}]
[]
[null,null,"Total for Fire Protection and Detection carried to Summary",{"$nulls":5},{"$f":"SUM(H1155:H1159)","v":{"v":180000,"d":"180,000.00"}}]
[]
[null,null,"BILL NO 13"]
[]
[null,null,"PROVISIONAL SUMS ETC"]
[]
[null,null,"PREAMBLES"]
[]
[null,null,"For preambles refer to \"Model Preambles for Trades\""]
[]
[null,null,"SUPPLEMENTARY PREAMBLES"]
[]
[null,null,"General"]
[]
[null,null,"Work for which budgetary allowances are provided will be measured and valued in accordance with clause 32 of the Principal Building Agreement and deducted in whole or in part if not required without any compensation for loss or profit on the said allowances"]
[]
[null,null,"Profit"]
[]
[null,null,"Where stated, the contractor may allow for profit if required"]
[]
[null,null,"General attendance upon nominated/selected sub-contractors and direct contractors"]
[]
[null,null,"The item \"Allow for general attendance\" which follows each provisional sum for nominatd/selected sub-contractors and direct contractors work, shall be deemed to cover all the contractor's costs incurred in providing free of charge to the nominated/selected sub-contractors and direct contractors, the following:"]
[]
[null,null,"1\tThe services as set out in clause B9 of the Preliminaries  2\tMaking good in all trades and cleaning down and removal of rubbish on completion"]
[]
[null,null,"Special attendance on nominated/selected subcontractors"]
[]
[null,null,"Where stated special attendance will be described in detail in the Schedule for Variables in the Preliminaries for the services as set out in clause B9.2"]
[]
[null,null,"Builder's work"]
[]
[null,null,"Builder's work in connection with specialist services is given elsewhere in these bills of quantities"]
[]
[null,null,"Taking delivery"]
[]
[null,null,"Taking delivery of goods or articles by the contractor on site shall mean delivery to site, unpacking, checking that the quantity is correct and that the goods are complete and undamaged, submitting a report thereof to the interested parties and issueing vouchers for the receipt of such goods.  The contractor shall store the goods and will be held responsible for the safety thereof and indemnify the employer against any damage or loss which may occur"]
[]
[null,null,"Preliminaries"]
[]
[null,null,"The contractor is referred to the Preliminaries for further amplification of \"Prime Cost Amounts and Provisional Sums\""]
[]
[null,null,"SELECTED SUBCONTRACTORS"]
[]
[null,null,"Vinyl on Glazing"]
[]
[{"v":1,"d":"1 "},null,"Provide the sum of R80,000 (eighty thousand rand) for vinyl on glazed shopfronts and doors",null,"Item",{"v":1,"d":"1 "},{"v":80000,"d":"80,000.00"},{"$f":"ROUND(F1207*G1207,2)","v":{"v":80000,"d":"80,000.00"}}]
[]
[{"v":2,"d":"2 "},null,"Profit and attendance",null,"Item",{"v":1,"d":"1 "},null,{"$f":"ROUND(F1209*G1209,2)","v":{"v":0,"d":"0.00"}}]
[]
[null,null,"Window Blinds"]
[]
[{"v":3,"d":"3 "},null,"Provide the sum of R360,000 (three hundred and sixty  thousand rand) for window blinds",null,"Item",{"v":1,"d":"1 "},{"v":360000,"d":"360,000.00"},{"$f":"ROUND(F1213*G1213,2)","v":{"v":360000,"d":"360,000.00"}}]
[]
[{"v":4,"d":"4 "},null,"Profit and attendance",null,"Item",{"v":1,"d":"1 "},null,{"$f":"ROUND(F1215*G1215,2)","v":{"v":0,"d":"0.00"}}]
[]
[null,null,"Joinery"]
[]
[{"v":5,"d":"5 "},null,"Provide the sum of R1,200,000 (one million two hundred thousand rand) for joinery fittings",null,"Item",{"v":1,"d":"1 "},{"v":1200000,"d":"1,200,000.00"},{"$f":"ROUND(F1219*G1219,2)","v":{"v":1200000,"d":"1,200,000.00"}}]
[]
[{"v":6,"d":"6 "},null,"Profit and attendance",null,"Item",{"v":1,"d":"1 "},null,{"$f":"ROUND(F1221*G1221,2)","v":{"v":0,"d":"0.00"}}]
[]
[null,null,"Wallpaper"]
[]
[{"v":7,"d":"7 "},null,"Provide the sum of R20,000 (twenty thousand rand) for wallpaper",null,"Item",{"v":1,"d":"1 "},{"v":20000,"d":"20,000.00"},{"$f":"ROUND(F1225*G1225,2)","v":{"v":20000,"d":"20,000.00"}}]
[]
[{"v":8,"d":"8 "},null,"Profit and attendance",null,"Item",{"v":1,"d":"1 "},null,{"$f":"ROUND(F1227*G1227,2)","v":{"v":0,"d":"0.00"}}]
[]
[null,null,"Signage"]
[]
[{"v":9,"d":"9 "},null,"Provide of R30,000 (thirty thousand rand) for signage",null,"Item",{"v":1,"d":"1 "},{"v":30000,"d":"30,000.00"},{"$f":"ROUND(F1231*G1231,2)","v":{"v":30000,"d":"30,000.00"}}]
[]
[{"v":10,"d":"10 "},null,"Profit and attendance",null,"Item",{"v":1,"d":"1 "},null,{"$f":"ROUND(F1233*G1233,2)","v":{"v":0,"d":"0.00"}}]
[]
[null,null,"BUILDERS WORK IN CONNECTION WTIH ELECTRICAL, MECHANICAL AND FIRE INSTALLATIONS"]
[]
[{"v":11,"d":"11 "},null,"Budgetary allowance of R60,000 (sixty thousand rand) for builders work in connection with electrical, mechanical and fire installations - eg chasing, holes, core drilling etc",null,"Item",{"v":1,"d":"1 "},{"v":60000,"d":"60,000.00"},{"$f":"ROUND(F1237*G1237,2)","v":{"v":60000,"d":"60,000.00"}}]
[]
[null,null,"ATTENDANCE ON DIRECT CONTRACTORS"]
[]
[null,null,"Work listed under the heading \"ATTENDANCE ON DIRECT CONTRACTORS\" will commence during the execution of this contract and the contractor shall allow free access to the site for the direct contractors. The contractor shall prepare a programme in conjunction with the direct contractor in order to complete the work successfully. The direct contractors will be regarded as nominated sub-contractors but payment will be made to them directly by the client."]
[]
[null,null,"Data installation"]
[]
[{"v":12,"d":"12 "},null,"Allow for attendance only on the direct contract for the data installation",null,"Item",{"v":1,"d":"1 "},null,{"v":0,"d":"0.00"}]
[]
[null,null,"Total for Provisional Sums carried to Summary",{"$nulls":5},{"$f":"SUM(H1201:H1245)","v":{"v":1750000,"d":"1,750,000.00"}}]
[]
[null,null,"FINAL SUMMARY"]
[]
[{"v":1,"d":"1 "},null,"PRELIMINARIES",null,"Page",{"v":8,"d":"8 "},null,{"$f":"I105","v":{"v":0,"d":"0.00"}}]
[]
[{"v":2,"d":"2 "},null,"CONTRACT DATA",null,"Page",{"v":18,"d":"18 "}]
[]
[{"v":3,"d":"3 "},null,"CEILINGS",null,"Page",{"v":23,"d":"23 "},null,{"$f":"I340","v":{"v":0,"d":"0.00"}}]
[]
[{"v":4,"d":"4 "},null,"PARTITIONS",null,"Page",{"v":32,"d":"32 "},null,{"$f":"I547","v":{"v":0,"d":"0.00"}}]
[]
[{"v":5,"d":"5 "},null,"FLOOR COVERINGS",null,"Page",{"v":35,"d":"35 "},null,{"$f":"I609","v":{"v":40000,"d":"40,000.00"}}]
[]
[{"v":6,"d":"6 "},null,"IRONMONGERY",null,"Page",{"v":38,"d":"38 "},null,{"$f":"I657","v":{"v":0,"d":"0.00"}}]
[]
[{"v":7,"d":"7 "},null,"TILING",null,"Page",{"v":41,"d":"41 "},null,{"$f":"I689","v":{"v":0,"d":"0.00"}}]
[]
[{"v":9,"d":"9 "},null,"PLUMBING AND DRAINAGE",null,"Page",{"v":47,"d":"47 "},null,{"$f":"I813","v":{"v":80000,"d":"80,000.00"}}]
[]
[{"v":10,"d":"10 "},null,"RENOVATIONS OF BATHROOMS",null,"Page",{"v":58,"d":"58 "},null,{"$f":"I1117","v":{"v":150000,"d":"150,000.00"}}]
[]
[{"v":11,"d":"11 "},null,"ELECTRICAL INSTALLATION",null,"Page",{"v":59,"d":"59 "},null,{"$f":"I1137","v":{"v":500000,"d":"500,000.00"}}]
[]
[{"v":12,"d":"12 "},null,"MECHANICAL INSTALLATION",null,"Page",{"v":60,"d":"60 "},null,{"$f":"I1149","v":{"v":900000,"d":"900,000.00"}}]
[]
[{"v":13,"d":"13 "},null,"FIRE PROTECTION AND DETECTION INSTALLATION",null,"Page",{"v":61,"d":"61 "},null,{"$f":"I1161","v":{"v":180000,"d":"180,000.00"}}]
[]
[{"v":14,"d":"14 "},null,"PROVISIONAL SUMS",null,"Page",{"v":66,"d":"66 "},null,{"$f":"I1247","v":{"v":1750000,"d":"1,750,000.00"}}]
[]
[null,null,"SUB-TOTAL",{"$nulls":4},{"$f":"SUM(H1251:H1275)","v":{"v":3600000,"d":"3,600,000.00"}}]
[]
[null,null,"VAT 15% ",null,"TAX",{"v":0.15,"d":"15%"},null,"the columns for Item No, "]
[]
[null,null,"TOTAL CARRIED TO FORM OF TENDER",{"$nulls":4},{"$f":"SUM(H1277:H1279)","v":{"v":3600000,"d":"3,600,000.00"}}]